{"text_format":"1","workbook":"xlsx","n_sheets":6,"sheets":["Bestellübersicht","Frühstück und Coffee Break","Sandwiches & Apéro","Lunch","Dessert","Getränke"],"not_rendered":{"charts":0,"images":10,"macros":1,"external_links":0,"defined_names":12,"comments":0,"pivot_tables":0},"unopened":[],"bounds":{"document_bytes":16777216,"sheet_cells":100000,"rows_first":2000,"rows_last":500,"rows_between":2000,"halvings":0,"cell_chars":16384,"cell_head_chars":4096},"cells_cut":0,"cells_raw":0,"read":"whole","date_system":"1900"}

{"sheet":"Bestellübersicht","index":0,"n_rows":281,"n_cols":8,"rows_kept":281,"cut":false,"hidden":false,"merged":[[6,1,6,7],[12,1,12,7],[15,1,15,7],[16,1,16,7],[13,1,13,7],[10,1,10,7],[14,2,14,3],[14,6,14,7],[11,1,11,7],[23,1,23,7],[24,1,24,7],[25,1,25,7],[22,1,22,7],[19,1,20,7]]}
[" Bestellung Catering"]
[]
["Bitte bestellen Sie mind. 5 Werktage im Voraus via Email an fhgr@scolarest.ch"]
[]
["Bestellangaben"]
["Navigieren Sie ganz unkompiziert durch das Bestellformular."]
["Name des Bestellers"]
["Telefon"]
["E-Mail"]
["Kostenstelle / Abteilung"]
["Aufladung Verpflegungskarte","CHF "]
["SAP Nummer"]
["Bestelldatum"]
["Art der Bestellung"]
["Datum und Zeit des Events / Lieferung","Datum",null,null,"Zeit"]
["Lieferort (nur bei Lieferung)"]
["Zeit Retouren (nur bei Lieferung)"]
["Service gewünscht / Zeit",null,"von","00.00",null,"bis ","00.00"]
["Zahlungsart"]
["Kommentar"]
[]
["Rechnungsadresse"]
["Firma"]
["Abteilung"]
["Strasse"]
["Ort"]
[]
["Ihre Bestellung","Einheit",null,"Preis/Einheit",null,"Anzahl",null,"Total"]
[{"$f":"'Frühstück und Coffee Break'!A7","v":"Einfaches Frühstück \nOrangensaft \nFrisches Gipfeli oder knuspriges Brötchen\nSaisonale Frucht   \nHausgemachtes Flavoured Water   "},{"$f":"'Frühstück und Coffee Break'!B7","v":"pro Person"},{"$f":"'Frühstück und Coffee Break'!C7","v":"CHF"},{"$f":"'Frühstück und Coffee Break'!D7","v":7.4},{"$f":"'Frühstück und Coffee Break'!E7","v":0},{"$f":"'Frühstück und Coffee Break'!F7","v":0},{"$f":"'Frühstück und Coffee Break'!G7","v":"CHF"},{"$f":"'Frühstück und Coffee Break'!H7","v":0}]
[{"$f":"'Frühstück und Coffee Break'!A8","v":"Vital Frühstück \nOrangensaft \nFrisches Gipfeli oder knuspriges Brötchen\nButter und Konfitüre\nBirchermüesli\nSaisonale Frucht  \nHausgemachtes Flavoured Water "},{"$f":"'Frühstück und Coffee Break'!B8","v":"pro Person"},{"$f":"'Frühstück und Coffee Break'!C8","v":"CHF"},{"$f":"'Frühstück und Coffee Break'!D8","v":9.4},{"$f":"'Frühstück und Coffee Break'!E8","v":0},{"$f":"'Frühstück und Coffee Break'!F8","v":0},{"$f":"'Frühstück und Coffee Break'!G8","v":"CHF"},{"$f":"'Frühstück und Coffee Break'!H8","v":0}]
[{"$f":"'Frühstück und Coffee Break'!A9","v":"Vital Frühstück \nOrangensaft \nFrisches Gipfeli oder knuspriges Brötchen\nButter und Konfitüre\nJogurt mit Früchte Topping\nSaisonale Frucht  \nHausgemachtes Flavoured Water "},{"$f":"'Frühstück und Coffee Break'!B9","v":"pro Person"},{"$f":"'Frühstück und Coffee Break'!C9","v":"CHF"},{"$f":"'Frühstück und Coffee Break'!D9","v":9.4},{"$f":"'Frühstück und Coffee Break'!E9","v":0},{"$f":"'Frühstück und Coffee Break'!F9","v":0},{"$f":"'Frühstück und Coffee Break'!G9","v":"CHF"},{"$f":"'Frühstück und Coffee Break'!H9","v":0}]
[{"$f":"'Frühstück und Coffee Break'!A10","v":"Glutenarmes Frühstück \nOrangensaft \nGlutenfreies Brötchen (separat verpackt)\nButter und Konfitüre\nJogurt mit Früchte Topping\nSaisonale Frucht  \nHausgemachtes Flavoured Water                                                    "},{"$f":"'Frühstück und Coffee Break'!B10","v":"pro Person"},{"$f":"'Frühstück und Coffee Break'!C10","v":"CHF"},{"$f":"'Frühstück und Coffee Break'!D10","v":9.4},{"$f":"'Frühstück und Coffee Break'!E10","v":0},{"$f":"'Frühstück und Coffee Break'!F10","v":0},{"$f":"'Frühstück und Coffee Break'!G10","v":"CHF"},{"$f":"'Frühstück und Coffee Break'!H10","v":0}]
[{"$f":"'Frühstück und Coffee Break'!A12","v":"Add-Ons / Snacks\nFrühstück ab 5 Personen bestellbar"},{"$f":"'Frühstück und Coffee Break'!B12","v":0},{"$f":"'Frühstück und Coffee Break'!C12","v":0},{"$f":"'Frühstück und Coffee Break'!D12","v":0},{"$f":"'Frühstück und Coffee Break'!E12","v":0},{"$f":"'Frühstück und Coffee Break'!F12","v":0},{"$f":"'Frühstück und Coffee Break'!G12","v":0},{"$f":"'Frühstück und Coffee Break'!H12","v":0}]
[{"$f":"'Frühstück und Coffee Break'!A13","v":"Buttergipfeli"},{"$f":"'Frühstück und Coffee Break'!B13","v":"pro Stück"},{"$f":"'Frühstück und Coffee Break'!C13","v":"CHF"},{"$f":"'Frühstück und Coffee Break'!D13","v":1.3},{"$f":"'Frühstück und Coffee Break'!E13","v":0},{"$f":"'Frühstück und Coffee Break'!F13","v":0},{"$f":"'Frühstück und Coffee Break'!G13","v":"CHF"},{"$f":"'Frühstück und Coffee Break'!H13","v":0}]
[{"$f":"'Frühstück und Coffee Break'!A14","v":"Laugengipfeli"},{"$f":"'Frühstück und Coffee Break'!B14","v":"pro Stück"},{"$f":"'Frühstück und Coffee Break'!C14","v":"CHF"},{"$f":"'Frühstück und Coffee Break'!D14","v":1.9},{"$f":"'Frühstück und Coffee Break'!E14","v":0},{"$f":"'Frühstück und Coffee Break'!F14","v":0},{"$f":"'Frühstück und Coffee Break'!G14","v":"CHF"},{"$f":"'Frühstück und Coffee Break'!H14","v":0}]
[{"$f":"'Frühstück und Coffee Break'!A15","v":"Rusticogipfeli"},{"$f":"'Frühstück und Coffee Break'!B15","v":"pro Stück"},{"$f":"'Frühstück und Coffee Break'!C15","v":"CHF"},{"$f":"'Frühstück und Coffee Break'!D15","v":1.9},{"$f":"'Frühstück und Coffee Break'!E15","v":0},{"$f":"'Frühstück und Coffee Break'!F15","v":0},{"$f":"'Frühstück und Coffee Break'!G15","v":"CHF"},{"$f":"'Frühstück und Coffee Break'!H15","v":0}]
[{"$f":"'Frühstück und Coffee Break'!A16","v":"Knuspriges Bürli"},{"$f":"'Frühstück und Coffee Break'!B16","v":"pro Stück"},{"$f":"'Frühstück und Coffee Break'!C16","v":"CHF"},{"$f":"'Frühstück und Coffee Break'!D16","v":1.5},{"$f":"'Frühstück und Coffee Break'!E16","v":0},{"$f":"'Frühstück und Coffee Break'!F16","v":0},{"$f":"'Frühstück und Coffee Break'!G16","v":"CHF"},{"$f":"'Frühstück und Coffee Break'!H16","v":0}]
[{"$f":"'Frühstück und Coffee Break'!A17","v":"Weggli"},{"$f":"'Frühstück und Coffee Break'!B17","v":"pro Stück"},{"$f":"'Frühstück und Coffee Break'!C17","v":"CHF"},{"$f":"'Frühstück und Coffee Break'!D17","v":1.5},{"$f":"'Frühstück und Coffee Break'!E17","v":0},{"$f":"'Frühstück und Coffee Break'!F17","v":0},{"$f":"'Frühstück und Coffee Break'!G17","v":"CHF"},{"$f":"'Frühstück und Coffee Break'!H17","v":0}]
[{"$f":"'Frühstück und Coffee Break'!A18","v":"Semmeli"},{"$f":"'Frühstück und Coffee Break'!B18","v":"pro Stück"},{"$f":"'Frühstück und Coffee Break'!C18","v":"CHF"},{"$f":"'Frühstück und Coffee Break'!D18","v":1.5},{"$f":"'Frühstück und Coffee Break'!E18","v":0},{"$f":"'Frühstück und Coffee Break'!F18","v":0},{"$f":"'Frühstück und Coffee Break'!G18","v":"CHF"},{"$f":"'Frühstück und Coffee Break'!H18","v":0}]
[{"$f":"'Frühstück und Coffee Break'!A19","v":"Früchte-Körner-Dinkel Brötli"},{"$f":"'Frühstück und Coffee Break'!B19","v":"pro Stück"},{"$f":"'Frühstück und Coffee Break'!C19","v":"CHF"},{"$f":"'Frühstück und Coffee Break'!D19","v":1.7},{"$f":"'Frühstück und Coffee Break'!E19","v":0},{"$f":"'Frühstück und Coffee Break'!F19","v":0},{"$f":"'Frühstück und Coffee Break'!G19","v":"CHF"},{"$f":"'Frühstück und Coffee Break'!H19","v":0}]
[{"$f":"'Frühstück und Coffee Break'!A20","v":"Sojabrötli"},{"$f":"'Frühstück und Coffee Break'!B20","v":"pro Stück"},{"$f":"'Frühstück und Coffee Break'!C20","v":"CHF"},{"$f":"'Frühstück und Coffee Break'!D20","v":1.7},{"$f":"'Frühstück und Coffee Break'!E20","v":0},{"$f":"'Frühstück und Coffee Break'!F20","v":0},{"$f":"'Frühstück und Coffee Break'!G20","v":"CHF"},{"$f":"'Frühstück und Coffee Break'!H20","v":0}]
[{"$f":"'Frühstück und Coffee Break'!A21","v":"Jogurt mit Früchte-Topping im Glas"},{"$f":"'Frühstück und Coffee Break'!B21","v":"pro Stück"},{"$f":"'Frühstück und Coffee Break'!C21","v":"CHF"},{"$f":"'Frühstück und Coffee Break'!D21","v":1.8},{"$f":"'Frühstück und Coffee Break'!E21","v":0},{"$f":"'Frühstück und Coffee Break'!F21","v":0},{"$f":"'Frühstück und Coffee Break'!G21","v":"CHF"},{"$f":"'Frühstück und Coffee Break'!H21","v":0}]
[{"$f":"'Frühstück und Coffee Break'!A22","v":"Jogurt mit Crunch Topping im Glas"},{"$f":"'Frühstück und Coffee Break'!B22","v":"pro Stück"},{"$f":"'Frühstück und Coffee Break'!C22","v":"CHF"},{"$f":"'Frühstück und Coffee Break'!D22","v":1.8},{"$f":"'Frühstück und Coffee Break'!E22","v":0},{"$f":"'Frühstück und Coffee Break'!F22","v":0},{"$f":"'Frühstück und Coffee Break'!G22","v":"CHF"},{"$f":"'Frühstück und Coffee Break'!H22","v":0}]
[{"$f":"'Frühstück und Coffee Break'!A23","v":"Hausgemachtes Birchermüesli im Glas"},{"$f":"'Frühstück und Coffee Break'!B23","v":"pro Stück"},{"$f":"'Frühstück und Coffee Break'!C23","v":"CHF"},{"$f":"'Frühstück und Coffee Break'!D23","v":1.8},{"$f":"'Frühstück und Coffee Break'!E23","v":0},{"$f":"'Frühstück und Coffee Break'!F23","v":0},{"$f":"'Frühstück und Coffee Break'!G23","v":"CHF"},{"$f":"'Frühstück und Coffee Break'!H23","v":0}]
[{"$f":"'Frühstück und Coffee Break'!A24","v":"Veganes Birchermüesli"},{"$f":"'Frühstück und Coffee Break'!B24","v":"pro Stück"},{"$f":"'Frühstück und Coffee Break'!C24","v":"CHF"},{"$f":"'Frühstück und Coffee Break'!D24","v":2.2000000000000002},{"$f":"'Frühstück und Coffee Break'!E24","v":0},{"$f":"'Frühstück und Coffee Break'!F24","v":0},{"$f":"'Frühstück und Coffee Break'!G24","v":"CHF"},{"$f":"'Frühstück und Coffee Break'!H24","v":0}]
[{"$f":"'Frühstück und Coffee Break'!A25","v":"Laktosefreies Jogurt"},{"$f":"'Frühstück und Coffee Break'!B25","v":"pro Stück"},{"$f":"'Frühstück und Coffee Break'!C25","v":"CHF"},{"$f":"'Frühstück und Coffee Break'!D25","v":2.2000000000000002},{"$f":"'Frühstück und Coffee Break'!E25","v":0},{"$f":"'Frühstück und Coffee Break'!F25","v":0},{"$f":"'Frühstück und Coffee Break'!G25","v":"CHF"},{"$f":"'Frühstück und Coffee Break'!H25","v":0}]
[{"$f":"'Frühstück und Coffee Break'!A26","v":"Fruchtsalat im Glas"},{"$f":"'Frühstück und Coffee Break'!B26","v":"pro Stück"},{"$f":"'Frühstück und Coffee Break'!C26","v":"CHF"},{"$f":"'Frühstück und Coffee Break'!D26","v":1.8},{"$f":"'Frühstück und Coffee Break'!E26","v":0},{"$f":"'Frühstück und Coffee Break'!F26","v":0},{"$f":"'Frühstück und Coffee Break'!G26","v":"CHF"},{"$f":"'Frühstück und Coffee Break'!H26","v":0}]
[{"$f":"'Frühstück und Coffee Break'!A27","v":"Saisonale Frucht"},{"$f":"'Frühstück und Coffee Break'!B27","v":"pro Stück"},{"$f":"'Frühstück und Coffee Break'!C27","v":"CHF"},{"$f":"'Frühstück und Coffee Break'!D27","v":1},{"$f":"'Frühstück und Coffee Break'!E27","v":0},{"$f":"'Frühstück und Coffee Break'!F27","v":0},{"$f":"'Frühstück und Coffee Break'!G27","v":"CHF"},{"$f":"'Frühstück und Coffee Break'!H27","v":0}]
[{"$f":"'Frühstück und Coffee Break'!A28","v":"Butter-und Konfitüren-Variation"},{"$f":"'Frühstück und Coffee Break'!B28","v":"pro Person"},{"$f":"'Frühstück und Coffee Break'!C28","v":"CHF"},{"$f":"'Frühstück und Coffee Break'!D28","v":2},{"$f":"'Frühstück und Coffee Break'!E28","v":0},{"$f":"'Frühstück und Coffee Break'!F28","v":0},{"$f":"'Frühstück und Coffee Break'!G28","v":"CHF"},{"$f":"'Frühstück und Coffee Break'!H28","v":0}]
[{"$f":"'Frühstück und Coffee Break'!A29","v":"Soja Jogurt"},{"$f":"'Frühstück und Coffee Break'!B29","v":"pro Stück"},{"$f":"'Frühstück und Coffee Break'!C29","v":"CHF"},{"$f":"'Frühstück und Coffee Break'!D29","v":1.65},{"$f":"'Frühstück und Coffee Break'!E29","v":0},{"$f":"'Frühstück und Coffee Break'!F29","v":0},{"$f":"'Frühstück und Coffee Break'!G29","v":"CHF"},{"$f":"'Frühstück und Coffee Break'!H29","v":0}]
[{"$f":"'Frühstück und Coffee Break'!A30","v":"Chia Pudding"},{"$f":"'Frühstück und Coffee Break'!B30","v":"pro Stück"},{"$f":"'Frühstück und Coffee Break'!C30","v":"CHF"},{"$f":"'Frühstück und Coffee Break'!D30","v":2.2000000000000002},{"$f":"'Frühstück und Coffee Break'!E30","v":0},{"$f":"'Frühstück und Coffee Break'!F30","v":0},{"$f":"'Frühstück und Coffee Break'!G30","v":"CHF"},{"$f":"'Frühstück und Coffee Break'!H30","v":0}]
[{"$f":"'Frühstück und Coffee Break'!A31","v":"Trek Riegel"},{"$f":"'Frühstück und Coffee Break'!B31","v":"pro Stück"},{"$f":"'Frühstück und Coffee Break'!C31","v":"CHF"},{"$f":"'Frühstück und Coffee Break'!D31","v":2.8},{"$f":"'Frühstück und Coffee Break'!E31","v":0},{"$f":"'Frühstück und Coffee Break'!F31","v":0},{"$f":"'Frühstück und Coffee Break'!G31","v":"CHF"},{"$f":"'Frühstück und Coffee Break'!H31","v":0}]
[{"$f":"'Frühstück und Coffee Break'!A32","v":"Süsses und Spezielles"},{"$f":"'Frühstück und Coffee Break'!B32","v":0},{"$f":"'Frühstück und Coffee Break'!C32","v":0},{"$f":"'Frühstück und Coffee Break'!D32","v":0},{"$f":"'Frühstück und Coffee Break'!E32","v":0},{"$f":"'Frühstück und Coffee Break'!F32","v":0},{"$f":"'Frühstück und Coffee Break'!G32","v":0},{"$f":"'Frühstück und Coffee Break'!H32","v":0}]
[{"$f":"'Frühstück und Coffee Break'!A33","v":"Scchoggibrötli Fairtrade"},{"$f":"'Frühstück und Coffee Break'!B33","v":"pro Stück"},{"$f":"'Frühstück und Coffee Break'!C33","v":"CHF"},{"$f":"'Frühstück und Coffee Break'!D33","v":1.7},{"$f":"'Frühstück und Coffee Break'!E33","v":0},{"$f":"'Frühstück und Coffee Break'!F33","v":0},{"$f":"'Frühstück und Coffee Break'!G33","v":"CHF"},{"$f":"'Frühstück und Coffee Break'!H33","v":0}]
[{"$f":"'Frühstück und Coffee Break'!A34","v":"Muffins Chocolate-Vanilla"},{"$f":"'Frühstück und Coffee Break'!B34","v":"pro Stück"},{"$f":"'Frühstück und Coffee Break'!C34","v":"CHF"},{"$f":"'Frühstück und Coffee Break'!D34","v":4.8},{"$f":"'Frühstück und Coffee Break'!E34","v":0},{"$f":"'Frühstück und Coffee Break'!F34","v":0},{"$f":"'Frühstück und Coffee Break'!G34","v":"CHF"},{"$f":"'Frühstück und Coffee Break'!H34","v":0}]
[{"$f":"'Frühstück und Coffee Break'!A35","v":"Muffins Lemon Meringue"},{"$f":"'Frühstück und Coffee Break'!B35","v":"pro Stück"},{"$f":"'Frühstück und Coffee Break'!C35","v":"CHF"},{"$f":"'Frühstück und Coffee Break'!D35","v":4.8},{"$f":"'Frühstück und Coffee Break'!E35","v":0},{"$f":"'Frühstück und Coffee Break'!F35","v":0},{"$f":"'Frühstück und Coffee Break'!G35","v":"CHF"},{"$f":"'Frühstück und Coffee Break'!H35","v":0}]
[{"$f":"'Frühstück und Coffee Break'!A36","v":"Muffins Salted Caramel"},{"$f":"'Frühstück und Coffee Break'!B36","v":"pro Stück"},{"$f":"'Frühstück und Coffee Break'!C36","v":"CHF"},{"$f":"'Frühstück und Coffee Break'!D36","v":4.8},{"$f":"'Frühstück und Coffee Break'!E36","v":0},{"$f":"'Frühstück und Coffee Break'!F36","v":0},{"$f":"'Frühstück und Coffee Break'!G36","v":"CHF"},{"$f":"'Frühstück und Coffee Break'!H36","v":0}]
[{"$f":"'Frühstück und Coffee Break'!A37","v":"Muffins Apple-Cinnamon"},{"$f":"'Frühstück und Coffee Break'!B37","v":"pro Stück"},{"$f":"'Frühstück und Coffee Break'!C37","v":"CHF"},{"$f":"'Frühstück und Coffee Break'!D37","v":4.8},{"$f":"'Frühstück und Coffee Break'!E37","v":0},{"$f":"'Frühstück und Coffee Break'!F37","v":0},{"$f":"'Frühstück und Coffee Break'!G37","v":"CHF"},{"$f":"'Frühstück und Coffee Break'!H37","v":0}]
[{"$f":"'Frühstück und Coffee Break'!A38","v":"Muffins Blueberry"},{"$f":"'Frühstück und Coffee Break'!B38","v":"pro Stück"},{"$f":"'Frühstück und Coffee Break'!C38","v":"CHF"},{"$f":"'Frühstück und Coffee Break'!D38","v":4.8},{"$f":"'Frühstück und Coffee Break'!E38","v":0},{"$f":"'Frühstück und Coffee Break'!F38","v":0},{"$f":"'Frühstück und Coffee Break'!G38","v":"CHF"},{"$f":"'Frühstück und Coffee Break'!H38","v":0}]
[{"$f":"'Frühstück und Coffee Break'!A39","v":"Brownie"},{"$f":"'Frühstück und Coffee Break'!B39","v":"pro Stück"},{"$f":"'Frühstück und Coffee Break'!C39","v":"CHF"},{"$f":"'Frühstück und Coffee Break'!D39","v":3},{"$f":"'Frühstück und Coffee Break'!E39","v":0},{"$f":"'Frühstück und Coffee Break'!F39","v":0},{"$f":"'Frühstück und Coffee Break'!G39","v":"CHF"},{"$f":"'Frühstück und Coffee Break'!H39","v":0}]
[{"$f":"'Frühstück und Coffee Break'!A40","v":"Mini Patisserie, assortiert"},{"$f":"'Frühstück und Coffee Break'!B40","v":"pro Person"},{"$f":"'Frühstück und Coffee Break'!C40","v":"CHF"},{"$f":"'Frühstück und Coffee Break'!D40","v":2.2000000000000002},{"$f":"'Frühstück und Coffee Break'!E40","v":0},{"$f":"'Frühstück und Coffee Break'!F40","v":0},{"$f":"'Frühstück und Coffee Break'!G40","v":"CHF"},{"$f":"'Frühstück und Coffee Break'!H40","v":0}]
[{"$f":"'Frühstück und Coffee Break'!A41","v":"Fruchtspiessli"},{"$f":"'Frühstück und Coffee Break'!B41","v":"pro Stück"},{"$f":"'Frühstück und Coffee Break'!C41","v":"CHF"},{"$f":"'Frühstück und Coffee Break'!D41","v":2},{"$f":"'Frühstück und Coffee Break'!E41","v":0},{"$f":"'Frühstück und Coffee Break'!F41","v":0},{"$f":"'Frühstück und Coffee Break'!G41","v":"CHF"},{"$f":"'Frühstück und Coffee Break'!H41","v":0}]
[{"$f":"'Frühstück und Coffee Break'!A42","v":"Bagel mit Frischkäse, Rucola, Tomate und Gurke"},{"$f":"'Frühstück und Coffee Break'!B42","v":"pro Stück"},{"$f":"'Frühstück und Coffee Break'!C42","v":"CHF"},{"$f":"'Frühstück und Coffee Break'!D42","v":7.2},{"$f":"'Frühstück und Coffee Break'!E42","v":0},{"$f":"'Frühstück und Coffee Break'!F42","v":0},{"$f":"'Frühstück und Coffee Break'!G42","v":"CHF"},{"$f":"'Frühstück und Coffee Break'!H42","v":0}]
[{"$f":"'Frühstück und Coffee Break'!A43","v":"Cookie-Variation"},{"$f":"'Frühstück und Coffee Break'!B43","v":"pro Person"},{"$f":"'Frühstück und Coffee Break'!C43","v":"CHF"},{"$f":"'Frühstück und Coffee Break'!D43","v":4.9000000000000004},{"$f":"'Frühstück und Coffee Break'!E43","v":0},{"$f":"'Frühstück und Coffee Break'!F43","v":0},{"$f":"'Frühstück und Coffee Break'!G43","v":"CHF"},{"$f":"'Frühstück und Coffee Break'!H43","v":0}]
[{"$f":"'Frühstück und Coffee Break'!A44","v":"Coffee Break\nCoffee Break ab 5 Personen bestellbar"},{"$f":"'Frühstück und Coffee Break'!B44","v":0},{"$f":"'Frühstück und Coffee Break'!C44","v":0},{"$f":"'Frühstück und Coffee Break'!D44","v":0},{"$f":"'Frühstück und Coffee Break'!E44","v":0},{"$f":"'Frühstück und Coffee Break'!F44","v":0},{"$f":"'Frühstück und Coffee Break'!G44","v":0},{"$f":"'Frühstück und Coffee Break'!H44","v":0}]
[{"$f":"'Frühstück und Coffee Break'!A45","v":"Swiss Break\nFrischer Kaffee oder Tee\nOrangensaft \nSüssgebäck assortiert\nSaisonaler Früchtekorb \nHausgemachtes Flavoured Water "},{"$f":"'Frühstück und Coffee Break'!B45","v":"pro Person"},{"$f":"'Frühstück und Coffee Break'!C45","v":"CHF"},{"$f":"'Frühstück und Coffee Break'!D45","v":8.1999999999999993},{"$f":"'Frühstück und Coffee Break'!E45","v":0},{"$f":"'Frühstück und Coffee Break'!F45","v":0},{"$f":"'Frühstück und Coffee Break'!G45","v":"CHF"},{"$f":"'Frühstück und Coffee Break'!H45","v":0}]
[{"$f":"'Frühstück und Coffee Break'!A46","v":"French Break\nFrischer Kaffee oder Tee\nOrangensaft  \nBrioche / Croissant\nSaisonaler Früchtekorb\nHausgemachtes Flavoured Water"},{"$f":"'Frühstück und Coffee Break'!B46","v":"pro Person"},{"$f":"'Frühstück und Coffee Break'!C46","v":"CHF"},{"$f":"'Frühstück und Coffee Break'!D46","v":9.1999999999999993},{"$f":"'Frühstück und Coffee Break'!E46","v":0},{"$f":"'Frühstück und Coffee Break'!F46","v":0},{"$f":"'Frühstück und Coffee Break'!G46","v":"CHF"},{"$f":"'Frühstück und Coffee Break'!H46","v":0}]
[{"$f":"'Frühstück und Coffee Break'!A47","v":"Bayrisch Break\nFrischer Kaffee oder Tee\nBretzel\nBlechkuchen\nHausgemachtes Flavoured Water "},{"$f":"'Frühstück und Coffee Break'!B47","v":"pro Person"},{"$f":"'Frühstück und Coffee Break'!C47","v":"CHF"},{"$f":"'Frühstück und Coffee Break'!D47","v":9.9},{"$f":"'Frühstück und Coffee Break'!E47","v":0},{"$f":"'Frühstück und Coffee Break'!F47","v":0},{"$f":"'Frühstück und Coffee Break'!G47","v":"CHF"},{"$f":"'Frühstück und Coffee Break'!H47","v":0}]
[{"$f":"'Sandwiches & Apéro'!A7","v":"Kleine Apéro Sandwiches\n(3 Brötchen pro Person)\nVariation an Laugenbrötchen, Rusticobrötchen, \nBrioche und Mini Bürli, gefüllt mit\nThon-Mousse, Frischkäse, Rohschinken, Käse und gegrilltem Gemüse\n"},{"$f":"'Sandwiches & Apéro'!B7","v":"pro Person"},{"$f":"'Sandwiches & Apéro'!C7","v":"CHF"},{"$f":"'Sandwiches & Apéro'!D7","v":7.5},{"$f":"'Sandwiches & Apéro'!E7","v":0},{"$f":"'Sandwiches & Apéro'!F7","v":0},{"$f":"'Sandwiches & Apéro'!G7","v":"CHF"},{"$f":"'Sandwiches & Apéro'!H7","v":0}]
[{"$f":"'Sandwiches & Apéro'!A8","v":"Steinofenbaguette, 52cm\n(reicht für ca. 6 Personen)\nKnuspriges Baguette gefüllt mit Schinken, Salami, Fleischkäse\nund Käse, garniert mit Salat, Gürkchen und Tomaten\n"},{"$f":"'Sandwiches & Apéro'!B8","v":"pro Stück"},{"$f":"'Sandwiches & Apéro'!C8","v":"CHF"},{"$f":"'Sandwiches & Apéro'!D8","v":22.8},{"$f":"'Sandwiches & Apéro'!E8","v":0},{"$f":"'Sandwiches & Apéro'!F8","v":0},{"$f":"'Sandwiches & Apéro'!G8","v":"CHF"},{"$f":"'Sandwiches & Apéro'!H8","v":0}]
[{"$f":"'Sandwiches & Apéro'!A9","v":"Steinofenbaguette, 52cm vegan\n(reicht für ca. 6 Personen)\nKnuspriges Baguette gefüllt mit Avocado mit weissen Bohnen, Antipasti und Räuchertofu und Hummus\n"},{"$f":"'Sandwiches & Apéro'!B9","v":"pro Stück"},{"$f":"'Sandwiches & Apéro'!C9","v":"CHF"},{"$f":"'Sandwiches & Apéro'!D9","v":24.5},{"$f":"'Sandwiches & Apéro'!E9","v":0},{"$f":"'Sandwiches & Apéro'!F9","v":0},{"$f":"'Sandwiches & Apéro'!G9","v":"CHF"},{"$f":"'Sandwiches & Apéro'!H9","v":0}]
[{"$f":"'Sandwiches & Apéro'!A10","v":"Triangle Sandwich\nGerösteter Toast gefüllt mit Schinken und Käse\n\n"},{"$f":"'Sandwiches & Apéro'!B10","v":"pro Stück"},{"$f":"'Sandwiches & Apéro'!C10","v":"CHF"},{"$f":"'Sandwiches & Apéro'!D10","v":7.5},{"$f":"'Sandwiches & Apéro'!E10","v":0},{"$f":"'Sandwiches & Apéro'!F10","v":0},{"$f":"'Sandwiches & Apéro'!G10","v":"CHF"},{"$f":"'Sandwiches & Apéro'!H10","v":0}]
[{"$f":"'Sandwiches & Apéro'!A11","v":"Triangle Sandwich\nGerösteter Toast gefüllt mit Thonmousse"},{"$f":"'Sandwiches & Apéro'!B11","v":"pro Stück"},{"$f":"'Sandwiches & Apéro'!C11","v":"CHF"},{"$f":"'Sandwiches & Apéro'!D11","v":7.5},{"$f":"'Sandwiches & Apéro'!E11","v":0},{"$f":"'Sandwiches & Apéro'!F11","v":0},{"$f":"'Sandwiches & Apéro'!G11","v":"CHF"},{"$f":"'Sandwiches & Apéro'!H11","v":0}]
[{"$f":"'Sandwiches & Apéro'!A12","v":"Triangle Sandwich\nGerösteter Toast gefüllt mit Eimousse "},{"$f":"'Sandwiches & Apéro'!B12","v":"pro Stück"},{"$f":"'Sandwiches & Apéro'!C12","v":"CHF"},{"$f":"'Sandwiches & Apéro'!D12","v":7.5},{"$f":"'Sandwiches & Apéro'!E12","v":0},{"$f":"'Sandwiches & Apéro'!F12","v":0},{"$f":"'Sandwiches & Apéro'!G12","v":"CHF"},{"$f":"'Sandwiches & Apéro'!H12","v":0}]
[{"$f":"'Sandwiches & Apéro'!A13","v":"Triangle Sandwich\nGerösteter Toast gefüllt mit Kräuterfrischkäse"},{"$f":"'Sandwiches & Apéro'!B13","v":"pro Stück"},{"$f":"'Sandwiches & Apéro'!C13","v":"CHF"},{"$f":"'Sandwiches & Apéro'!D13","v":7.5},{"$f":"'Sandwiches & Apéro'!E13","v":0},{"$f":"'Sandwiches & Apéro'!F13","v":0},{"$f":"'Sandwiches & Apéro'!G13","v":"CHF"},{"$f":"'Sandwiches & Apéro'!H13","v":0}]
[{"$f":"'Sandwiches & Apéro'!A14","v":"Triangle Sandwich vegan\nGerösteter Toast gefüllt mit Avocado und weissen Bohnen"},{"$f":"'Sandwiches & Apéro'!B14","v":"pro Stück"},{"$f":"'Sandwiches & Apéro'!C14","v":"CHF"},{"$f":"'Sandwiches & Apéro'!D14","v":9.5},{"$f":"'Sandwiches & Apéro'!E14","v":0},{"$f":"'Sandwiches & Apéro'!F14","v":0},{"$f":"'Sandwiches & Apéro'!G14","v":"CHF"},{"$f":"'Sandwiches & Apéro'!H14","v":0}]
[{"$f":"'Sandwiches & Apéro'!A15","v":"Triangle Sandwich vegan\nGerösteter Toast gefüllt mit Antipasti\n"},{"$f":"'Sandwiches & Apéro'!B15","v":"pro Stück"},{"$f":"'Sandwiches & Apéro'!C15","v":"CHF"},{"$f":"'Sandwiches & Apéro'!D15","v":9.5},{"$f":"'Sandwiches & Apéro'!E15","v":0},{"$f":"'Sandwiches & Apéro'!F15","v":0},{"$f":"'Sandwiches & Apéro'!G15","v":"CHF"},{"$f":"'Sandwiches & Apéro'!H15","v":0}]
[{"$f":"'Sandwiches & Apéro'!A16","v":"Canapées gemischt oder nach Wunsch belegt"},{"$f":"'Sandwiches & Apéro'!B16","v":"pro Stück"},{"$f":"'Sandwiches & Apéro'!C16","v":"CHF"},{"$f":"'Sandwiches & Apéro'!D16","v":5.2},{"$f":"'Sandwiches & Apéro'!E16","v":0},{"$f":"'Sandwiches & Apéro'!F16","v":0},{"$f":"'Sandwiches & Apéro'!G16","v":"CHF"},{"$f":"'Sandwiches & Apéro'!H16","v":0}]
[{"$f":"'Sandwiches & Apéro'!A17","v":"Triangle Sandwich vegan\nGerösteter Toast gefüllt mit Räuchertofu und Hummus\n"},{"$f":"'Sandwiches & Apéro'!B17","v":"pro Stück"},{"$f":"'Sandwiches & Apéro'!C17","v":"CHF"},{"$f":"'Sandwiches & Apéro'!D17","v":9.5},{"$f":"'Sandwiches & Apéro'!E17","v":0},{"$f":"'Sandwiches & Apéro'!F17","v":0},{"$f":"'Sandwiches & Apéro'!G17","v":"CHF"},{"$f":"'Sandwiches & Apéro'!H17","v":0}]
[{"$f":"'Sandwiches & Apéro'!A18","v":"Apéro"},{"$f":"'Sandwiches & Apéro'!B18","v":0},{"$f":"'Sandwiches & Apéro'!C18","v":0},{"$f":"'Sandwiches & Apéro'!D18","v":0},{"$f":"'Sandwiches & Apéro'!E18","v":0},{"$f":"'Sandwiches & Apéro'!F18","v":0},{"$f":"'Sandwiches & Apéro'!G18","v":0},{"$f":"'Sandwiches & Apéro'!H18","v":0}]
[{"$f":"'Sandwiches & Apéro'!A19","v":"Varianten\nApéro Variationen ab 10 Personen bestellbar"},{"$f":"'Sandwiches & Apéro'!B19","v":0},{"$f":"'Sandwiches & Apéro'!C19","v":0},{"$f":"'Sandwiches & Apéro'!D19","v":0},{"$f":"'Sandwiches & Apéro'!E19","v":0},{"$f":"'Sandwiches & Apéro'!F19","v":0},{"$f":"'Sandwiches & Apéro'!G19","v":0},{"$f":"'Sandwiches & Apéro'!H19","v":0}]
[{"$f":"'Sandwiches & Apéro'!A20","v":"Small Apéro\nKleine Apéro Sandwiches assortiert\nFruchtsalat im Glas"},{"$f":"'Sandwiches & Apéro'!B20","v":"pro Person"},{"$f":"'Sandwiches & Apéro'!C20","v":"CHF"},{"$f":"'Sandwiches & Apéro'!D20","v":9.1999999999999993},{"$f":"'Sandwiches & Apéro'!E20","v":0},{"$f":"'Sandwiches & Apéro'!F20","v":0},{"$f":"'Sandwiches & Apéro'!G20","v":"CHF"},{"$f":"'Sandwiches & Apéro'!H20","v":0}]
[{"$f":"'Sandwiches & Apéro'!A21","v":"Medium Apéro\nParty Schinkengipfel\nMini Chäschüechli\nMozzarella-Tomaten Spiess\nZucchini-Röllchen gefüllt mit Frischkäse\nHackbällchen in pikanter Tomatensauce im Glas"},{"$f":"'Sandwiches & Apéro'!B21","v":"pro Person"},{"$f":"'Sandwiches & Apéro'!C21","v":"CHF"},{"$f":"'Sandwiches & Apéro'!D21","v":21},{"$f":"'Sandwiches & Apéro'!E21","v":0},{"$f":"'Sandwiches & Apéro'!F21","v":0},{"$f":"'Sandwiches & Apéro'!G21","v":"CHF"},{"$f":"'Sandwiches & Apéro'!H21","v":0}]
[{"$f":"'Sandwiches & Apéro'!A22","v":"Large Apéro\nPoulet-Satay Spiessli\nGemüse-Frühlingsrolle mit Sweet Chilisauce\nGebackene Shrimps mit Dip Sauce            \nAsiatischer Gurkensalat im Glas\nAntipasti Spiessli\nGrisini mit Rohschinken\nFruchtsalat im Glas"},{"$f":"'Sandwiches & Apéro'!B22","v":"pro Person"},{"$f":"'Sandwiches & Apéro'!C22","v":"CHF"},{"$f":"'Sandwiches & Apéro'!D22","v":34.9},{"$f":"'Sandwiches & Apéro'!E22","v":0},{"$f":"'Sandwiches & Apéro'!F22","v":0},{"$f":"'Sandwiches & Apéro'!G22","v":"CHF"},{"$f":"'Sandwiches & Apéro'!H22","v":0}]
[{"$f":"'Sandwiches & Apéro'!A23","v":"XL Apéro\nPartybrötchen de luxe mit Rauchlachs, Rohschinken oder Brie\nWraps vegetarisch, vegan oder mit Fleischfüllung\nSamosa mit Dip Sauce\nFischknusperli mit Sauce Tartar\nBruschetta mit Tomate und Zwiebel\nCrevetten Salat Thai Style im Glas\nSaisonale Spiesse \nHausgemachtes Mini Pana Cotta mit \nSaisonalen Früchten  "},{"$f":"'Sandwiches & Apéro'!B23","v":"pro Person"},{"$f":"'Sandwiches & Apéro'!C23","v":"CHF"},{"$f":"'Sandwiches & Apéro'!D23","v":40.299999999999997},{"$f":"'Sandwiches & Apéro'!E23","v":0},{"$f":"'Sandwiches & Apéro'!F23","v":0},{"$f":"'Sandwiches & Apéro'!G23","v":"CHF"},{"$f":"'Sandwiches & Apéro'!H23","v":0}]
[{"$f":"'Sandwiches & Apéro'!A24","v":"Sandwiches\nSandwiches ab 5 Personen bestellbar\n"},{"$f":"'Sandwiches & Apéro'!B24","v":0},{"$f":"'Sandwiches & Apéro'!C24","v":0},{"$f":"'Sandwiches & Apéro'!D24","v":0},{"$f":"'Sandwiches & Apéro'!E24","v":0},{"$f":"'Sandwiches & Apéro'!F24","v":0},{"$f":"'Sandwiches & Apéro'!G24","v":0},{"$f":"'Sandwiches & Apéro'!H24","v":0}]
[{"$f":"'Sandwiches & Apéro'!A25","v":"Gefülltes Parisette (57cm) \nKnuspriges Parisette gefüllt mit \neiner Variation aus Schinken, Salami, Fleischkäse,\nKäse und Antipasti Gemüse"},{"$f":"'Sandwiches & Apéro'!B25","v":"pro Stück"},{"$f":"'Sandwiches & Apéro'!C25","v":"CHF"},{"$f":"'Sandwiches & Apéro'!D25","v":25.2},{"$f":"'Sandwiches & Apéro'!E25","v":0},{"$f":"'Sandwiches & Apéro'!F25","v":0},{"$f":"'Sandwiches & Apéro'!G25","v":"CHF"},{"$f":"'Sandwiches & Apéro'!H25","v":0}]
[{"$f":"'Sandwiches & Apéro'!A26","v":"Focaccia  \t\ngefüllt mit Falafel und Hummuu, garniert mit reichlich Salat\n"},{"$f":"'Sandwiches & Apéro'!B26","v":"pro Stück"},{"$f":"'Sandwiches & Apéro'!C26","v":"CHF"},{"$f":"'Sandwiches & Apéro'!D26","v":8.5},{"$f":"'Sandwiches & Apéro'!E26","v":0},{"$f":"'Sandwiches & Apéro'!F26","v":0},{"$f":"'Sandwiches & Apéro'!G26","v":"CHF"},{"$f":"'Sandwiches & Apéro'!H26","v":0}]
[{"$f":"'Sandwiches & Apéro'!A27","v":"Focaccia  \t\ngefüllt mit Roastbeef, Frischkäse, Salat, Tomaten, Gurken und Radieschen\n"},{"$f":"'Sandwiches & Apéro'!B27","v":"pro Stück"},{"$f":"'Sandwiches & Apéro'!C27","v":"CHF"},{"$f":"'Sandwiches & Apéro'!D27","v":12.5},{"$f":"'Sandwiches & Apéro'!E27","v":0},{"$f":"'Sandwiches & Apéro'!F27","v":0},{"$f":"'Sandwiches & Apéro'!G27","v":"CHF"},{"$f":"'Sandwiches & Apéro'!H27","v":0}]
[{"$f":"'Sandwiches & Apéro'!A28","v":"Focaccia  \t\ngefüllt mit Pouletstreifen, Currysauce, Salat und Tomaten \n"},{"$f":"'Sandwiches & Apéro'!B28","v":"pro Stück"},{"$f":"'Sandwiches & Apéro'!C28","v":"CHF"},{"$f":"'Sandwiches & Apéro'!D28","v":10.8},{"$f":"'Sandwiches & Apéro'!E28","v":0},{"$f":"'Sandwiches & Apéro'!F28","v":0},{"$f":"'Sandwiches & Apéro'!G28","v":"CHF"},{"$f":"'Sandwiches & Apéro'!H28","v":0}]
[{"$f":"'Sandwiches & Apéro'!A29","v":"Focaccia  \t\ngefüllt mit Tomaten, Mozzarella, Frischkäse und Basilikum"},{"$f":"'Sandwiches & Apéro'!B29","v":"pro Stück"},{"$f":"'Sandwiches & Apéro'!C29","v":"CHF"},{"$f":"'Sandwiches & Apéro'!D29","v":10.5},{"$f":"'Sandwiches & Apéro'!E29","v":0},{"$f":"'Sandwiches & Apéro'!F29","v":0},{"$f":"'Sandwiches & Apéro'!G29","v":"CHF"},{"$f":"'Sandwiches & Apéro'!H29","v":0}]
[{"$f":"'Sandwiches & Apéro'!A30","v":"Partybrötchen de lux\n(3 Brötchen pro Person)\nVariation an Laugenbrötchen, Rusticobrötchen, Brioche und \nMini Bürli, gefüllt mit Rauchlachs, Roastbeef, Coppa, Bri und Birne"},{"$f":"'Sandwiches & Apéro'!B30","v":"pro Person"},{"$f":"'Sandwiches & Apéro'!C30","v":"CHF"},{"$f":"'Sandwiches & Apéro'!D30","v":16.5},{"$f":"'Sandwiches & Apéro'!E30","v":0},{"$f":"'Sandwiches & Apéro'!F30","v":0},{"$f":"'Sandwiches & Apéro'!G30","v":"CHF"},{"$f":"'Sandwiches & Apéro'!H30","v":0}]
[{"$f":"'Sandwiches & Apéro'!A31","v":"Gefüllter Bagel         \t\nFrischer Bagel gefüllt mit Frischkäse auf Salatgarnitur\n"},{"$f":"'Sandwiches & Apéro'!B31","v":"pro Stück"},{"$f":"'Sandwiches & Apéro'!C31","v":"CHF"},{"$f":"'Sandwiches & Apéro'!D31","v":9.5},{"$f":"'Sandwiches & Apéro'!E31","v":0},{"$f":"'Sandwiches & Apéro'!F31","v":0},{"$f":"'Sandwiches & Apéro'!G31","v":"CHF"},{"$f":"'Sandwiches & Apéro'!H31","v":0}]
[{"$f":"'Sandwiches & Apéro'!A32","v":"Gefüllter Bagel         \t\nFrischer Bagel gefüllt mit Eimousse auf Salatgarnitur\n"},{"$f":"'Sandwiches & Apéro'!B32","v":"pro Stück"},{"$f":"'Sandwiches & Apéro'!C32","v":"CHF"},{"$f":"'Sandwiches & Apéro'!D32","v":9.5},{"$f":"'Sandwiches & Apéro'!E32","v":0},{"$f":"'Sandwiches & Apéro'!F32","v":0},{"$f":"'Sandwiches & Apéro'!G32","v":"CHF"},{"$f":"'Sandwiches & Apéro'!H32","v":0}]
[{"$f":"'Sandwiches & Apéro'!A33","v":"Gefüllter Bagel         \t\nFrischer Bagel gefüllt mit Tomate, Mozzarella auf Ruccola\n\n"},{"$f":"'Sandwiches & Apéro'!B33","v":"pro Stück"},{"$f":"'Sandwiches & Apéro'!C33","v":"CHF"},{"$f":"'Sandwiches & Apéro'!D33","v":9.5},{"$f":"'Sandwiches & Apéro'!E33","v":0},{"$f":"'Sandwiches & Apéro'!F33","v":0},{"$f":"'Sandwiches & Apéro'!G33","v":"CHF"},{"$f":"'Sandwiches & Apéro'!H33","v":0}]
[{"$f":"'Sandwiches & Apéro'!A34","v":"Gefüllter Bagel         \t\nFrischer Bagel gefüllt mit Rauchlachs, Frischkäse, Meerrettich und Zwiebeln\n"},{"$f":"'Sandwiches & Apéro'!B34","v":"pro Stück"},{"$f":"'Sandwiches & Apéro'!C34","v":"CHF"},{"$f":"'Sandwiches & Apéro'!D34","v":9.5},{"$f":"'Sandwiches & Apéro'!E34","v":0},{"$f":"'Sandwiches & Apéro'!F34","v":0},{"$f":"'Sandwiches & Apéro'!G34","v":"CHF"},{"$f":"'Sandwiches & Apéro'!H34","v":0}]
[{"$f":"'Sandwiches & Apéro'!A35","v":"Wraps\nWraps ab 5 Personen bestellbar"},{"$f":"'Sandwiches & Apéro'!B35","v":0},{"$f":"'Sandwiches & Apéro'!C35","v":0},{"$f":"'Sandwiches & Apéro'!D35","v":0},{"$f":"'Sandwiches & Apéro'!E35","v":0},{"$f":"'Sandwiches & Apéro'!F35","v":0},{"$f":"'Sandwiches & Apéro'!G35","v":0},{"$f":"'Sandwiches & Apéro'!H35","v":0}]
[{"$f":"'Sandwiches & Apéro'!A36","v":"Wrap Swiss Style\ngefüllt mit Vorderschinken und Emmentaler"},{"$f":"'Sandwiches & Apéro'!B36","v":"pro Person"},{"$f":"'Sandwiches & Apéro'!C36","v":"CHF"},{"$f":"'Sandwiches & Apéro'!D36","v":7.9},{"$f":"'Sandwiches & Apéro'!E36","v":0},{"$f":"'Sandwiches & Apéro'!F36","v":0},{"$f":"'Sandwiches & Apéro'!G36","v":"CHF"},{"$f":"'Sandwiches & Apéro'!H36","v":0}]
[{"$f":"'Sandwiches & Apéro'!A37","v":"Wrap Italy Style\ngefüllt mit Rucola, Parmesan, Pinienkernen,\nRohschinken und getrockneten Tomaten"},{"$f":"'Sandwiches & Apéro'!B37","v":"pro Person"},{"$f":"'Sandwiches & Apéro'!C37","v":"CHF"},{"$f":"'Sandwiches & Apéro'!D37","v":14.1},{"$f":"'Sandwiches & Apéro'!E37","v":0},{"$f":"'Sandwiches & Apéro'!F37","v":0},{"$f":"'Sandwiches & Apéro'!G37","v":"CHF"},{"$f":"'Sandwiches & Apéro'!H37","v":0}]
[{"$f":"'Sandwiches & Apéro'!A38","v":"Wrap Moroccan Style\ngefüllt mit Bulgur, Hummus, Aubergine, Granatapfelkernen \nund Salat"},{"$f":"'Sandwiches & Apéro'!B38","v":"pro Person"},{"$f":"'Sandwiches & Apéro'!C38","v":"CHF"},{"$f":"'Sandwiches & Apéro'!D38","v":6.8},{"$f":"'Sandwiches & Apéro'!E38","v":0},{"$f":"'Sandwiches & Apéro'!F38","v":0},{"$f":"'Sandwiches & Apéro'!G38","v":"CHF"},{"$f":"'Sandwiches & Apéro'!H38","v":0}]
[{"$f":"'Sandwiches & Apéro'!A39","v":"Wrap Antipasti\ngefüllt mit Antipastigemüse und Rucola"},{"$f":"'Sandwiches & Apéro'!B39","v":"pro Person"},{"$f":"'Sandwiches & Apéro'!C39","v":"CHF"},{"$f":"'Sandwiches & Apéro'!D39","v":7.2},{"$f":"'Sandwiches & Apéro'!E39","v":0},{"$f":"'Sandwiches & Apéro'!F39","v":0},{"$f":"'Sandwiches & Apéro'!G39","v":"CHF"},{"$f":"'Sandwiches & Apéro'!H39","v":0}]
[{"$f":"'Sandwiches & Apéro'!A40","v":"Wrap Vegi Style\ngefüllt mit Philadelphia, Rucola, Zuchetti, Radieschen und Karotten\n"},{"$f":"'Sandwiches & Apéro'!B40","v":"pro Person"},{"$f":"'Sandwiches & Apéro'!C40","v":"CHF"},{"$f":"'Sandwiches & Apéro'!D40","v":6.3},{"$f":"'Sandwiches & Apéro'!E40","v":0},{"$f":"'Sandwiches & Apéro'!F40","v":0},{"$f":"'Sandwiches & Apéro'!G40","v":"CHF"},{"$f":"'Sandwiches & Apéro'!H40","v":0}]
[{"$f":"'Sandwiches & Apéro'!A41","v":"Wrap Norway Style\ngefüllt mit Rauchlachs, Meerrettich, Salat, Zwiebeln und Gurken\n"},{"$f":"'Sandwiches & Apéro'!B41","v":"pro Person"},{"$f":"'Sandwiches & Apéro'!C41","v":"CHF"},{"$f":"'Sandwiches & Apéro'!D41","v":13},{"$f":"'Sandwiches & Apéro'!E41","v":0},{"$f":"'Sandwiches & Apéro'!F41","v":0},{"$f":"'Sandwiches & Apéro'!G41","v":"CHF"},{"$f":"'Sandwiches & Apéro'!H41","v":0}]
[{"$f":"'Sandwiches & Apéro'!A42","v":"Wrap English Style\ngefüllt mit Roastbeef, Salat, Zwiebeln, Peperoni und Senf-Mayonnaise"},{"$f":"'Sandwiches & Apéro'!B42","v":"pro Person"},{"$f":"'Sandwiches & Apéro'!C42","v":"CHF"},{"$f":"'Sandwiches & Apéro'!D42","v":14},{"$f":"'Sandwiches & Apéro'!E42","v":0},{"$f":"'Sandwiches & Apéro'!F42","v":0},{"$f":"'Sandwiches & Apéro'!G42","v":"CHF"},{"$f":"'Sandwiches & Apéro'!H42","v":0}]
[{"$f":"'Sandwiches & Apéro'!A43","v":"Kalte Häppchen\nKalte Häppchen ab 10 Personen bestellbar"},{"$f":"'Sandwiches & Apéro'!B43","v":0},{"$f":"'Sandwiches & Apéro'!C43","v":0},{"$f":"'Sandwiches & Apéro'!D43","v":0},{"$f":"'Sandwiches & Apéro'!E43","v":0},{"$f":"'Sandwiches & Apéro'!F43","v":0},{"$f":"'Sandwiches & Apéro'!G43","v":0},{"$f":"'Sandwiches & Apéro'!H43","v":0}]
[{"$f":"'Sandwiches & Apéro'!A44","v":"Rohe Gemüsesticks mit Dip Sauce"},{"$f":"'Sandwiches & Apéro'!B44","v":"pro Person"},{"$f":"'Sandwiches & Apéro'!C44","v":"CHF"},{"$f":"'Sandwiches & Apéro'!D44","v":2.5},{"$f":"'Sandwiches & Apéro'!E44","v":0},{"$f":"'Sandwiches & Apéro'!F44","v":0},{"$f":"'Sandwiches & Apéro'!G44","v":"CHF"},{"$f":"'Sandwiches & Apéro'!H44","v":0}]
[{"$f":"'Sandwiches & Apéro'!A45","v":"Bruschetta mit frischen Tomaten und Zwiebel"},{"$f":"'Sandwiches & Apéro'!B45","v":"pro Stück"},{"$f":"'Sandwiches & Apéro'!C45","v":"CHF"},{"$f":"'Sandwiches & Apéro'!D45","v":2.2000000000000002},{"$f":"'Sandwiches & Apéro'!E45","v":0},{"$f":"'Sandwiches & Apéro'!F45","v":0},{"$f":"'Sandwiches & Apéro'!G45","v":"CHF"},{"$f":"'Sandwiches & Apéro'!H45","v":0}]
[{"$f":"'Sandwiches & Apéro'!A46","v":"Rauchlachs auf gerösteter Toastbrotscheibe"},{"$f":"'Sandwiches & Apéro'!B46","v":"pro Stück"},{"$f":"'Sandwiches & Apéro'!C46","v":"CHF"},{"$f":"'Sandwiches & Apéro'!D46","v":3.6},{"$f":"'Sandwiches & Apéro'!E46","v":0},{"$f":"'Sandwiches & Apéro'!F46","v":0},{"$f":"'Sandwiches & Apéro'!G46","v":"CHF"},{"$f":"'Sandwiches & Apéro'!H46","v":0}]
[{"$f":"'Sandwiches & Apéro'!A47","v":"Crevetten Cocktail im Glas"},{"$f":"'Sandwiches & Apéro'!B47","v":"pro Stück"},{"$f":"'Sandwiches & Apéro'!C47","v":"CHF"},{"$f":"'Sandwiches & Apéro'!D47","v":3.9},{"$f":"'Sandwiches & Apéro'!E47","v":0},{"$f":"'Sandwiches & Apéro'!F47","v":0},{"$f":"'Sandwiches & Apéro'!G47","v":"CHF"},{"$f":"'Sandwiches & Apéro'!H47","v":0}]
[{"$f":"'Sandwiches & Apéro'!A48","v":"Asiatischer Gurkensalat im Glas"},{"$f":"'Sandwiches & Apéro'!B48","v":"pro Stück"},{"$f":"'Sandwiches & Apéro'!C48","v":"CHF"},{"$f":"'Sandwiches & Apéro'!D48","v":2.5},{"$f":"'Sandwiches & Apéro'!E48","v":0},{"$f":"'Sandwiches & Apéro'!F48","v":0},{"$f":"'Sandwiches & Apéro'!G48","v":"CHF"},{"$f":"'Sandwiches & Apéro'!H48","v":0}]
[{"$f":"'Sandwiches & Apéro'!A49","v":"Zucchini-Röllchen gefüllt mit Frischkäse"},{"$f":"'Sandwiches & Apéro'!B49","v":"pro Stück"},{"$f":"'Sandwiches & Apéro'!C49","v":"CHF"},{"$f":"'Sandwiches & Apéro'!D49","v":2.5},{"$f":"'Sandwiches & Apéro'!E49","v":0},{"$f":"'Sandwiches & Apéro'!F49","v":0},{"$f":"'Sandwiches & Apéro'!G49","v":"CHF"},{"$f":"'Sandwiches & Apéro'!H49","v":0}]
[{"$f":"'Sandwiches & Apéro'!A50","v":"Roastbeef Röllchen mit Frischkäse"},{"$f":"'Sandwiches & Apéro'!B50","v":"pro Stück"},{"$f":"'Sandwiches & Apéro'!C50","v":"CHF"},{"$f":"'Sandwiches & Apéro'!D50","v":2.8},{"$f":"'Sandwiches & Apéro'!E50","v":0},{"$f":"'Sandwiches & Apéro'!F50","v":0},{"$f":"'Sandwiches & Apéro'!G50","v":"CHF"},{"$f":"'Sandwiches & Apéro'!H50","v":0}]
[{"$f":"'Sandwiches & Apéro'!A51","v":"Mini Pastetchen mit Frischkäsefüllung"},{"$f":"'Sandwiches & Apéro'!B51","v":"pro Stück"},{"$f":"'Sandwiches & Apéro'!C51","v":"CHF"},{"$f":"'Sandwiches & Apéro'!D51","v":1.4},{"$f":"'Sandwiches & Apéro'!E51","v":0},{"$f":"'Sandwiches & Apéro'!F51","v":0},{"$f":"'Sandwiches & Apéro'!G51","v":"CHF"},{"$f":"'Sandwiches & Apéro'!H51","v":0}]
[{"$f":"'Sandwiches & Apéro'!A52","v":"Mini Pastetchen mit Thonmousse"},{"$f":"'Sandwiches & Apéro'!B52","v":"pro Stück"},{"$f":"'Sandwiches & Apéro'!C52","v":"CHF"},{"$f":"'Sandwiches & Apéro'!D52","v":1.4},{"$f":"'Sandwiches & Apéro'!E52","v":0},{"$f":"'Sandwiches & Apéro'!F52","v":0},{"$f":"'Sandwiches & Apéro'!G52","v":"CHF"},{"$f":"'Sandwiches & Apéro'!H52","v":0}]
[{"$f":"'Sandwiches & Apéro'!A53","v":"Mini Pastetchen mit Rauchlachstartar"},{"$f":"'Sandwiches & Apéro'!B53","v":"pro Stück"},{"$f":"'Sandwiches & Apéro'!C53","v":"CHF"},{"$f":"'Sandwiches & Apéro'!D53","v":1.5},{"$f":"'Sandwiches & Apéro'!E53","v":0},{"$f":"'Sandwiches & Apéro'!F53","v":0},{"$f":"'Sandwiches & Apéro'!G53","v":"CHF"},{"$f":"'Sandwiches & Apéro'!H53","v":0}]
[{"$f":"'Sandwiches & Apéro'!A54","v":"Grisini mit Rohschinken"},{"$f":"'Sandwiches & Apéro'!B54","v":"pro Person"},{"$f":"'Sandwiches & Apéro'!C54","v":"CHF"},{"$f":"'Sandwiches & Apéro'!D54","v":1.4},{"$f":"'Sandwiches & Apéro'!E54","v":0},{"$f":"'Sandwiches & Apéro'!F54","v":0},{"$f":"'Sandwiches & Apéro'!G54","v":"CHF"},{"$f":"'Sandwiches & Apéro'!H54","v":0}]
[{"$f":"'Sandwiches & Apéro'!A55","v":"Mini Pita Brot mit Hummus"},{"$f":"'Sandwiches & Apéro'!B55","v":"pro Person"},{"$f":"'Sandwiches & Apéro'!C55","v":"CHF"},{"$f":"'Sandwiches & Apéro'!D55","v":2.4},{"$f":"'Sandwiches & Apéro'!E55","v":0},{"$f":"'Sandwiches & Apéro'!F55","v":0},{"$f":"'Sandwiches & Apéro'!G55","v":"CHF"},{"$f":"'Sandwiches & Apéro'!H55","v":0}]
[{"$f":"'Sandwiches & Apéro'!A56","v":"Spiessli"},{"$f":"'Sandwiches & Apéro'!B56","v":0},{"$f":"'Sandwiches & Apéro'!C56","v":0},{"$f":"'Sandwiches & Apéro'!D56","v":0},{"$f":"'Sandwiches & Apéro'!E56","v":0},{"$f":"'Sandwiches & Apéro'!F56","v":0},{"$f":"'Sandwiches & Apéro'!G56","v":0},{"$f":"'Sandwiches & Apéro'!H56","v":0}]
[{"$f":"'Sandwiches & Apéro'!A57","v":"Tomaten-Mozzarella "},{"$f":"'Sandwiches & Apéro'!B57","v":"pro Stück"},{"$f":"'Sandwiches & Apéro'!C57","v":"CHF"},{"$f":"'Sandwiches & Apéro'!D57","v":3},{"$f":"'Sandwiches & Apéro'!E57","v":0},{"$f":"'Sandwiches & Apéro'!F57","v":0},{"$f":"'Sandwiches & Apéro'!G57","v":"CHF"},{"$f":"'Sandwiches & Apéro'!H57","v":0}]
[{"$f":"'Sandwiches & Apéro'!A58","v":"Saisonale Früchte  "},{"$f":"'Sandwiches & Apéro'!B58","v":"pro Stück"},{"$f":"'Sandwiches & Apéro'!C58","v":"CHF"},{"$f":"'Sandwiches & Apéro'!D58","v":2},{"$f":"'Sandwiches & Apéro'!E58","v":0},{"$f":"'Sandwiches & Apéro'!F58","v":0},{"$f":"'Sandwiches & Apéro'!G58","v":"CHF"},{"$f":"'Sandwiches & Apéro'!H58","v":0}]
[{"$f":"'Sandwiches & Apéro'!A59","v":"Antipasti "},{"$f":"'Sandwiches & Apéro'!B59","v":"pro Stück"},{"$f":"'Sandwiches & Apéro'!C59","v":"CHF"},{"$f":"'Sandwiches & Apéro'!D59","v":2.4},{"$f":"'Sandwiches & Apéro'!E59","v":0},{"$f":"'Sandwiches & Apéro'!F59","v":0},{"$f":"'Sandwiches & Apéro'!G59","v":"CHF"},{"$f":"'Sandwiches & Apéro'!H59","v":0}]
[{"$f":"'Sandwiches & Apéro'!A60","v":"Melone-Rohschinken  "},{"$f":"'Sandwiches & Apéro'!B60","v":"pro Stück"},{"$f":"'Sandwiches & Apéro'!C60","v":"CHF"},{"$f":"'Sandwiches & Apéro'!D60","v":3},{"$f":"'Sandwiches & Apéro'!E60","v":0},{"$f":"'Sandwiches & Apéro'!F60","v":0},{"$f":"'Sandwiches & Apéro'!G60","v":"CHF"},{"$f":"'Sandwiches & Apéro'!H60","v":0}]
[{"$f":"'Sandwiches & Apéro'!A61","v":"Platten\nApéro Platten ab 5 Personen bestellbar"},{"$f":"'Sandwiches & Apéro'!B61","v":0},{"$f":"'Sandwiches & Apéro'!C61","v":0},{"$f":"'Sandwiches & Apéro'!D61","v":0},{"$f":"'Sandwiches & Apéro'!E61","v":0},{"$f":"'Sandwiches & Apéro'!F61","v":0},{"$f":"'Sandwiches & Apéro'!G61","v":0},{"$f":"'Sandwiches & Apéro'!H61","v":0}]
[{"$f":"'Sandwiches & Apéro'!A62","v":"Käse Platte    \n(100g Käse pro Person)\nVerschiedene Sorten an Hart- und Weichkäse\ngarniert mit Trauben und Walnüssen\ndazu servieren wir Ihnen frisches Nussbrot"},{"$f":"'Sandwiches & Apéro'!B62","v":"pro Person"},{"$f":"'Sandwiches & Apéro'!C62","v":"CHF"},{"$f":"'Sandwiches & Apéro'!D62","v":12},{"$f":"'Sandwiches & Apéro'!E62","v":0},{"$f":"'Sandwiches & Apéro'!F62","v":0},{"$f":"'Sandwiches & Apéro'!G62","v":"CHF"},{"$f":"'Sandwiches & Apéro'!H62","v":0}]
[{"$f":"'Sandwiches & Apéro'!A63","v":"Bündner Fleisch Platte \n(100g Fleisch pro Person)\nBündnerfleisch, Bündner Rohschinken, Speck, Salami, Aufschnitt\ngarniert mit Essiggurken, Silberzwiebeln und Tomaten\ndazu servieren wir Ihnen frisches Brot\n"},{"$f":"'Sandwiches & Apéro'!B63","v":"pro Person"},{"$f":"'Sandwiches & Apéro'!C63","v":"CHF"},{"$f":"'Sandwiches & Apéro'!D63","v":16},{"$f":"'Sandwiches & Apéro'!E63","v":0},{"$f":"'Sandwiches & Apéro'!F63","v":0},{"$f":"'Sandwiches & Apéro'!G63","v":"CHF"},{"$f":"'Sandwiches & Apéro'!H63","v":0}]
[{"$f":"'Sandwiches & Apéro'!A64","v":"Vegane Platte  \n(100g pro Person)\nPita Brot mit Hummus, Edamame, Oliven, Dörrtomaten und Falafel"},{"$f":"'Sandwiches & Apéro'!B64","v":"pro Person"},{"$f":"'Sandwiches & Apéro'!C64","v":"CHF"},{"$f":"'Sandwiches & Apéro'!D64","v":14.9},{"$f":"'Sandwiches & Apéro'!E64","v":0},{"$f":"'Sandwiches & Apéro'!F64","v":0},{"$f":"'Sandwiches & Apéro'!G64","v":"CHF"},{"$f":"'Sandwiches & Apéro'!H64","v":0}]
[{"$f":"'Sandwiches & Apéro'!A65","v":"Mediterane Platte \n(250g pro Person)\nMariniertes, gegrilltes Gemüse, \ngefüllte Peperoni, Oliven, Feta oder Parmesan\ndazu servieren wir Ihnen ofenfrisches Focacciabrot"},{"$f":"'Sandwiches & Apéro'!B65","v":"pro Person"},{"$f":"'Sandwiches & Apéro'!C65","v":"CHF"},{"$f":"'Sandwiches & Apéro'!D65","v":10.9},{"$f":"'Sandwiches & Apéro'!E65","v":0},{"$f":"'Sandwiches & Apéro'!F65","v":0},{"$f":"'Sandwiches & Apéro'!G65","v":"CHF"},{"$f":"'Sandwiches & Apéro'!H65","v":0}]
[{"$f":"'Sandwiches & Apéro'!A66","v":"Mezze Platte \n(250g pro Person)\nPita Brot mit Baba Ganoush, Hummus, Poulet Spiesse, \nglasierte Pilze, Feta Spinat Salat, Tabbuleh und \nDatteln im Speckmantel"},{"$f":"'Sandwiches & Apéro'!B66","v":"pro Person"},{"$f":"'Sandwiches & Apéro'!C66","v":"CHF"},{"$f":"'Sandwiches & Apéro'!D66","v":20.3},{"$f":"'Sandwiches & Apéro'!E66","v":0},{"$f":"'Sandwiches & Apéro'!F66","v":0},{"$f":"'Sandwiches & Apéro'!G66","v":"CHF"},{"$f":"'Sandwiches & Apéro'!H66","v":0}]
[{"$f":"'Sandwiches & Apéro'!A67","v":"Warme Häppchen\nWarme Häppchen ab 10 Personen bestellbar "},{"$f":"'Sandwiches & Apéro'!B67","v":0},{"$f":"'Sandwiches & Apéro'!C67","v":0},{"$f":"'Sandwiches & Apéro'!D67","v":0},{"$f":"'Sandwiches & Apéro'!E67","v":0},{"$f":"'Sandwiches & Apéro'!F67","v":0},{"$f":"'Sandwiches & Apéro'!G67","v":0},{"$f":"'Sandwiches & Apéro'!H67","v":0}]
[{"$f":"'Sandwiches & Apéro'!A68","v":"Gemüse-Frühlingsrolle"},{"$f":"'Sandwiches & Apéro'!B68","v":"pro Stück"},{"$f":"'Sandwiches & Apéro'!C68","v":"CHF"},{"$f":"'Sandwiches & Apéro'!D68","v":2.2999999999999998},{"$f":"'Sandwiches & Apéro'!E68","v":0},{"$f":"'Sandwiches & Apéro'!F68","v":0},{"$f":"'Sandwiches & Apéro'!G68","v":"CHF"},{"$f":"'Sandwiches & Apéro'!H68","v":0}]
[{"$f":"'Sandwiches & Apéro'!A69","v":"Chäschüechli"},{"$f":"'Sandwiches & Apéro'!B69","v":"pro Stück"},{"$f":"'Sandwiches & Apéro'!C69","v":"CHF"},{"$f":"'Sandwiches & Apéro'!D69","v":3.8},{"$f":"'Sandwiches & Apéro'!E69","v":0},{"$f":"'Sandwiches & Apéro'!F69","v":0},{"$f":"'Sandwiches & Apéro'!G69","v":"CHF"},{"$f":"'Sandwiches & Apéro'!H69","v":0}]
[{"$f":"'Sandwiches & Apéro'!A70","v":"Poulet-Satay Spiessli"},{"$f":"'Sandwiches & Apéro'!B70","v":"pro Stück"},{"$f":"'Sandwiches & Apéro'!C70","v":"CHF"},{"$f":"'Sandwiches & Apéro'!D70","v":3.6},{"$f":"'Sandwiches & Apéro'!E70","v":0},{"$f":"'Sandwiches & Apéro'!F70","v":0},{"$f":"'Sandwiches & Apéro'!G70","v":"CHF"},{"$f":"'Sandwiches & Apéro'!H70","v":0}]
[{"$f":"'Sandwiches & Apéro'!A71","v":"Hackbällchen in Tomatensauce, serviert im Glas"},{"$f":"'Sandwiches & Apéro'!B71","v":"pro Stück"},{"$f":"'Sandwiches & Apéro'!C71","v":"CHF"},{"$f":"'Sandwiches & Apéro'!D71","v":6.5},{"$f":"'Sandwiches & Apéro'!E71","v":0},{"$f":"'Sandwiches & Apéro'!F71","v":0},{"$f":"'Sandwiches & Apéro'!G71","v":"CHF"},{"$f":"'Sandwiches & Apéro'!H71","v":0}]
[{"$f":"'Sandwiches & Apéro'!A72","v":"Schinkengipfel"},{"$f":"'Sandwiches & Apéro'!B72","v":"pro Stück"},{"$f":"'Sandwiches & Apéro'!C72","v":"CHF"},{"$f":"'Sandwiches & Apéro'!D72","v":2.5},{"$f":"'Sandwiches & Apéro'!E72","v":0},{"$f":"'Sandwiches & Apéro'!F72","v":0},{"$f":"'Sandwiches & Apéro'!G72","v":"CHF"},{"$f":"'Sandwiches & Apéro'!H72","v":0}]
[{"$f":"'Sandwiches & Apéro'!A73","v":"Mini Pizza "},{"$f":"'Sandwiches & Apéro'!B73","v":"pro Stück"},{"$f":"'Sandwiches & Apéro'!C73","v":"CHF"},{"$f":"'Sandwiches & Apéro'!D73","v":2.5},{"$f":"'Sandwiches & Apéro'!E73","v":0},{"$f":"'Sandwiches & Apéro'!F73","v":0},{"$f":"'Sandwiches & Apéro'!G73","v":"CHF"},{"$f":"'Sandwiches & Apéro'!H73","v":0}]
[{"$f":"'Sandwiches & Apéro'!A74","v":"Fisch-Knusperli mit Sauce Tartar"},{"$f":"'Sandwiches & Apéro'!B74","v":"pro Person"},{"$f":"'Sandwiches & Apéro'!C74","v":"CHF"},{"$f":"'Sandwiches & Apéro'!D74","v":4.5},{"$f":"'Sandwiches & Apéro'!E74","v":0},{"$f":"'Sandwiches & Apéro'!F74","v":0},{"$f":"'Sandwiches & Apéro'!G74","v":"CHF"},{"$f":"'Sandwiches & Apéro'!H74","v":0}]
[{"$f":"'Sandwiches & Apéro'!A75","v":"Gemüsestrudel "},{"$f":"'Sandwiches & Apéro'!B75","v":"pro Person"},{"$f":"'Sandwiches & Apéro'!C75","v":"CHF"},{"$f":"'Sandwiches & Apéro'!D75","v":5.4},{"$f":"'Sandwiches & Apéro'!E75","v":0},{"$f":"'Sandwiches & Apéro'!F75","v":0},{"$f":"'Sandwiches & Apéro'!G75","v":"CHF"},{"$f":"'Sandwiches & Apéro'!H75","v":0}]
[{"$f":"'Sandwiches & Apéro'!A76","v":"Crevetten Spiessli"},{"$f":"'Sandwiches & Apéro'!B76","v":"pro Stück"},{"$f":"'Sandwiches & Apéro'!C76","v":"CHF"},{"$f":"'Sandwiches & Apéro'!D76","v":3.9},{"$f":"'Sandwiches & Apéro'!E76","v":0},{"$f":"'Sandwiches & Apéro'!F76","v":0},{"$f":"'Sandwiches & Apéro'!G76","v":"CHF"},{"$f":"'Sandwiches & Apéro'!H76","v":0}]
[{"$f":"'Sandwiches & Apéro'!A77","v":"Gebackene Shrimps mit Dip Sauce "},{"$f":"'Sandwiches & Apéro'!B77","v":"pro Stück"},{"$f":"'Sandwiches & Apéro'!C77","v":"CHF"},{"$f":"'Sandwiches & Apéro'!D77","v":6},{"$f":"'Sandwiches & Apéro'!E77","v":0},{"$f":"'Sandwiches & Apéro'!F77","v":0},{"$f":"'Sandwiches & Apéro'!G77","v":"CHF"},{"$f":"'Sandwiches & Apéro'!H77","v":0}]
[{"$f":"'Sandwiches & Apéro'!A78","v":"Speckbrot überbacken mit Raclette Käse "},{"$f":"'Sandwiches & Apéro'!B78","v":"pro Stück"},{"$f":"'Sandwiches & Apéro'!C78","v":"CHF"},{"$f":"'Sandwiches & Apéro'!D78","v":3.4},{"$f":"'Sandwiches & Apéro'!E78","v":0},{"$f":"'Sandwiches & Apéro'!F78","v":0},{"$f":"'Sandwiches & Apéro'!G78","v":"CHF"},{"$f":"'Sandwiches & Apéro'!H78","v":0}]
[{"$f":"'Sandwiches & Apéro'!A79","v":"Chicken Nuggets mit Dip Sauce"},{"$f":"'Sandwiches & Apéro'!B79","v":"pro Stück"},{"$f":"'Sandwiches & Apéro'!C79","v":"CHF"},{"$f":"'Sandwiches & Apéro'!D79","v":6.9},{"$f":"'Sandwiches & Apéro'!E79","v":0},{"$f":"'Sandwiches & Apéro'!F79","v":0},{"$f":"'Sandwiches & Apéro'!G79","v":"CHF"},{"$f":"'Sandwiches & Apéro'!H79","v":0}]
[{"$f":"'Sandwiches & Apéro'!A80","v":"Mini Hot Dog"},{"$f":"'Sandwiches & Apéro'!B80","v":"pro Stück"},{"$f":"'Sandwiches & Apéro'!C80","v":"CHF"},{"$f":"'Sandwiches & Apéro'!D80","v":4.2},{"$f":"'Sandwiches & Apéro'!E80","v":0},{"$f":"'Sandwiches & Apéro'!F80","v":0},{"$f":"'Sandwiches & Apéro'!G80","v":"CHF"},{"$f":"'Sandwiches & Apéro'!H80","v":0}]
[{"$f":"'Sandwiches & Apéro'!A81","v":"Samosas"},{"$f":"'Sandwiches & Apéro'!B81","v":"pro Stück"},{"$f":"'Sandwiches & Apéro'!C81","v":"CHF"},{"$f":"'Sandwiches & Apéro'!D81","v":2.6},{"$f":"'Sandwiches & Apéro'!E81","v":0},{"$f":"'Sandwiches & Apéro'!F81","v":0},{"$f":"'Sandwiches & Apéro'!G81","v":"CHF"},{"$f":"'Sandwiches & Apéro'!H81","v":0}]
[{"$f":"'Sandwiches & Apéro'!A82","v":"Gemüse Pakoras mit Rajita Dip"},{"$f":"'Sandwiches & Apéro'!B82","v":"pro Stück"},{"$f":"'Sandwiches & Apéro'!C82","v":"CHF"},{"$f":"'Sandwiches & Apéro'!D82","v":2.5},{"$f":"'Sandwiches & Apéro'!E82","v":0},{"$f":"'Sandwiches & Apéro'!F82","v":0},{"$f":"'Sandwiches & Apéro'!G82","v":"CHF"},{"$f":"'Sandwiches & Apéro'!H82","v":0}]
[{"$f":"'Sandwiches & Apéro'!A83","v":"Hot Jalapenos mit Sauerrahm Dip"},{"$f":"'Sandwiches & Apéro'!B83","v":"pro Stück"},{"$f":"'Sandwiches & Apéro'!C83","v":"CHF"},{"$f":"'Sandwiches & Apéro'!D83","v":2.5},{"$f":"'Sandwiches & Apéro'!E83","v":0},{"$f":"'Sandwiches & Apéro'!F83","v":0},{"$f":"'Sandwiches & Apéro'!G83","v":"CHF"},{"$f":"'Sandwiches & Apéro'!H83","v":0}]
[{"$f":"'Sandwiches & Apéro'!A84","v":"Patatas Bravas "},{"$f":"'Sandwiches & Apéro'!B84","v":"pro Stück"},{"$f":"'Sandwiches & Apéro'!C84","v":"CHF"},{"$f":"'Sandwiches & Apéro'!D84","v":4.5},{"$f":"'Sandwiches & Apéro'!E84","v":0},{"$f":"'Sandwiches & Apéro'!F84","v":0},{"$f":"'Sandwiches & Apéro'!G84","v":"CHF"},{"$f":"'Sandwiches & Apéro'!H84","v":0}]
[{"$f":"'Sandwiches & Apéro'!A85","v":"Dattel im Speckmantel"},{"$f":"'Sandwiches & Apéro'!B85","v":"pro Stück"},{"$f":"'Sandwiches & Apéro'!C85","v":"CHF "},{"$f":"'Sandwiches & Apéro'!D85","v":1},{"$f":"'Sandwiches & Apéro'!E85","v":0},{"$f":"'Sandwiches & Apéro'!F85","v":0},{"$f":"'Sandwiches & Apéro'!G85","v":"CHF"},{"$f":"'Sandwiches & Apéro'!H85","v":0}]
[{"$f":"'Sandwiches & Apéro'!A86","v":"Quesadillas (Käse-Chili Füllung)"},{"$f":"'Sandwiches & Apéro'!B86","v":"pro Person"},{"$f":"'Sandwiches & Apéro'!C86","v":"CHF"},{"$f":"'Sandwiches & Apéro'!D86","v":4.8},{"$f":"'Sandwiches & Apéro'!E86","v":0},{"$f":"'Sandwiches & Apéro'!F86","v":0},{"$f":"'Sandwiches & Apéro'!G86","v":"CHF"},{"$f":"'Sandwiches & Apéro'!H86","v":0}]
[{"$f":"'Sandwiches & Apéro'!A87","v":"Tortilla de Patatas"},{"$f":"'Sandwiches & Apéro'!B87","v":"pro Person"},{"$f":"'Sandwiches & Apéro'!C87","v":"CHF"},{"$f":"'Sandwiches & Apéro'!D87","v":5.4},{"$f":"'Sandwiches & Apéro'!E87","v":0},{"$f":"'Sandwiches & Apéro'!F87","v":0},{"$f":"'Sandwiches & Apéro'!G87","v":"CHF"},{"$f":"'Sandwiches & Apéro'!H87","v":0}]
[{"$f":"'Sandwiches & Apéro'!A88","v":"Pulled Pork Mini Burger"},{"$f":"'Sandwiches & Apéro'!B88","v":"pro Stück"},{"$f":"'Sandwiches & Apéro'!C88","v":"CHF"},{"$f":"'Sandwiches & Apéro'!D88","v":7.8},{"$f":"'Sandwiches & Apéro'!E88","v":0},{"$f":"'Sandwiches & Apéro'!F88","v":0},{"$f":"'Sandwiches & Apéro'!G88","v":"CHF"},{"$f":"'Sandwiches & Apéro'!H88","v":0}]
[{"$f":"'Sandwiches & Apéro'!A89","v":"Fish ‘n’ Chips"},{"$f":"'Sandwiches & Apéro'!B89","v":"pro Person"},{"$f":"'Sandwiches & Apéro'!C89","v":"CHF"},{"$f":"'Sandwiches & Apéro'!D89","v":6},{"$f":"'Sandwiches & Apéro'!E89","v":0},{"$f":"'Sandwiches & Apéro'!F89","v":0},{"$f":"'Sandwiches & Apéro'!G89","v":"CHF"},{"$f":"'Sandwiches & Apéro'!H89","v":0}]
[{"$f":"'Sandwiches & Apéro'!A90","v":"Schnitzelbrot mit Tartarsauce"},{"$f":"'Sandwiches & Apéro'!B90","v":"pro Stück"},{"$f":"'Sandwiches & Apéro'!C90","v":"CHF"},{"$f":"'Sandwiches & Apéro'!D90","v":6.6},{"$f":"'Sandwiches & Apéro'!E90","v":0},{"$f":"'Sandwiches & Apéro'!F90","v":0},{"$f":"'Sandwiches & Apéro'!G90","v":"CHF"},{"$f":"'Sandwiches & Apéro'!H90","v":0}]
[{"$f":"'Sandwiches & Apéro'!A91","v":"Elsässer Flammkuchen\n(ausreichend für ca. 6 Personen)"},{"$f":"'Sandwiches & Apéro'!B91","v":"pro Stück"},{"$f":"'Sandwiches & Apéro'!C91","v":"CHF"},{"$f":"'Sandwiches & Apéro'!D91","v":15},{"$f":"'Sandwiches & Apéro'!E91","v":0},{"$f":"'Sandwiches & Apéro'!F91","v":0},{"$f":"'Sandwiches & Apéro'!G91","v":"CHF"},{"$f":"'Sandwiches & Apéro'!H91","v":0}]
[{"$f":"'Sandwiches & Apéro'!A92","v":"Hausgemachte Gemüse Quiche \n(ausreichend für ca. 6 Personen)"},{"$f":"'Sandwiches & Apéro'!B92","v":"pro Stück"},{"$f":"'Sandwiches & Apéro'!C92","v":"CHF"},{"$f":"'Sandwiches & Apéro'!D92","v":15},{"$f":"'Sandwiches & Apéro'!E92","v":0},{"$f":"'Sandwiches & Apéro'!F92","v":0},{"$f":"'Sandwiches & Apéro'!G92","v":"CHF"},{"$f":"'Sandwiches & Apéro'!H92","v":0}]
[{"$f":"'Sandwiches & Apéro'!A93","v":"Snacks"},{"$f":"'Sandwiches & Apéro'!B93","v":0},{"$f":"'Sandwiches & Apéro'!C93","v":0},{"$f":"'Sandwiches & Apéro'!D93","v":0},{"$f":"'Sandwiches & Apéro'!E93","v":0},{"$f":"'Sandwiches & Apéro'!F93","v":0},{"$f":"'Sandwiches & Apéro'!G93","v":0},{"$f":"'Sandwiches & Apéro'!H93","v":0}]
[{"$f":"'Sandwiches & Apéro'!A94","v":"Kartoffelchips Paprika"},{"$f":"'Sandwiches & Apéro'!B94","v":"pro Person"},{"$f":"'Sandwiches & Apéro'!C94","v":"CHF"},{"$f":"'Sandwiches & Apéro'!D94","v":1.9},{"$f":"'Sandwiches & Apéro'!E94","v":0},{"$f":"'Sandwiches & Apéro'!F94","v":0},{"$f":"'Sandwiches & Apéro'!G94","v":"CHF"},{"$f":"'Sandwiches & Apéro'!H94","v":0}]
[{"$f":"'Sandwiches & Apéro'!A95","v":"Kartoffelchips Salz"},{"$f":"'Sandwiches & Apéro'!B95","v":"pro Person"},{"$f":"'Sandwiches & Apéro'!C95","v":"CHF"},{"$f":"'Sandwiches & Apéro'!D95","v":1.9},{"$f":"'Sandwiches & Apéro'!E95","v":0},{"$f":"'Sandwiches & Apéro'!F95","v":0},{"$f":"'Sandwiches & Apéro'!G95","v":"CHF"},{"$f":"'Sandwiches & Apéro'!H95","v":0}]
[{"$f":"'Sandwiches & Apéro'!A96","v":"Gemüsechips"},{"$f":"'Sandwiches & Apéro'!B96","v":"pro Person"},{"$f":"'Sandwiches & Apéro'!C96","v":"CHF"},{"$f":"'Sandwiches & Apéro'!D96","v":3.6},{"$f":"'Sandwiches & Apéro'!E96","v":0},{"$f":"'Sandwiches & Apéro'!F96","v":0},{"$f":"'Sandwiches & Apéro'!G96","v":"CHF"},{"$f":"'Sandwiches & Apéro'!H96","v":0}]
[{"$f":"'Sandwiches & Apéro'!A97","v":"Salznüssli"},{"$f":"'Sandwiches & Apéro'!B97","v":"pro Person"},{"$f":"'Sandwiches & Apéro'!C97","v":"CHF"},{"$f":"'Sandwiches & Apéro'!D97","v":1.5},{"$f":"'Sandwiches & Apéro'!E97","v":0},{"$f":"'Sandwiches & Apéro'!F97","v":0},{"$f":"'Sandwiches & Apéro'!G97","v":"CHF"},{"$f":"'Sandwiches & Apéro'!H97","v":0}]
[{"$f":"'Sandwiches & Apéro'!A98","v":"Salzstängeli"},{"$f":"'Sandwiches & Apéro'!B98","v":"pro Person"},{"$f":"'Sandwiches & Apéro'!C98","v":"CHF"},{"$f":"'Sandwiches & Apéro'!D98","v":1.8},{"$f":"'Sandwiches & Apéro'!E98","v":0},{"$f":"'Sandwiches & Apéro'!F98","v":0},{"$f":"'Sandwiches & Apéro'!G98","v":"CHF"},{"$f":"'Sandwiches & Apéro'!H98","v":0}]
[{"$f":"'Sandwiches & Apéro'!A99","v":"Salzige Blätterteigstangen"},{"$f":"'Sandwiches & Apéro'!B99","v":"pro Person"},{"$f":"'Sandwiches & Apéro'!C99","v":"CHF"},{"$f":"'Sandwiches & Apéro'!D99","v":4.5},{"$f":"'Sandwiches & Apéro'!E99","v":0},{"$f":"'Sandwiches & Apéro'!F99","v":0},{"$f":"'Sandwiches & Apéro'!G99","v":"CHF"},{"$f":"'Sandwiches & Apéro'!H99","v":0}]
[{"$f":"'Sandwiches & Apéro'!A100","v":"Marinierte Oliven "},{"$f":"'Sandwiches & Apéro'!B100","v":"pro Person"},{"$f":"'Sandwiches & Apéro'!C100","v":"CHF"},{"$f":"'Sandwiches & Apéro'!D100","v":4.5},{"$f":"'Sandwiches & Apéro'!E100","v":0},{"$f":"'Sandwiches & Apéro'!F100","v":0},{"$f":"'Sandwiches & Apéro'!G100","v":"CHF"},{"$f":"'Sandwiches & Apéro'!H100","v":0}]
[{"$f":"'Sandwiches & Apéro'!A101","v":"Parmesanmöckli"},{"$f":"'Sandwiches & Apéro'!B101","v":"pro Person"},{"$f":"'Sandwiches & Apéro'!C101","v":"CHF"},{"$f":"'Sandwiches & Apéro'!D101","v":8.1},{"$f":"'Sandwiches & Apéro'!E101","v":0},{"$f":"'Sandwiches & Apéro'!F101","v":0},{"$f":"'Sandwiches & Apéro'!G101","v":"CHF"},{"$f":"'Sandwiches & Apéro'!H101","v":0}]
[{"$f":"'Sandwiches & Apéro'!A102","v":"Marinierte Dörrtomaten"},{"$f":"'Sandwiches & Apéro'!B102","v":"pro Person"},{"$f":"'Sandwiches & Apéro'!C102","v":"CHF"},{"$f":"'Sandwiches & Apéro'!D102","v":9.1},{"$f":"'Sandwiches & Apéro'!E102","v":0},{"$f":"'Sandwiches & Apéro'!F102","v":0},{"$f":"'Sandwiches & Apéro'!G102","v":"CHF"},{"$f":"'Sandwiches & Apéro'!H102","v":0}]
[{"$f":"'Sandwiches & Apéro'!A103","v":"Marinierte Fetawürfel"},{"$f":"'Sandwiches & Apéro'!B103","v":"pro Person"},{"$f":"'Sandwiches & Apéro'!C103","v":"CHF"},{"$f":"'Sandwiches & Apéro'!D103","v":2.5},{"$f":"'Sandwiches & Apéro'!E103","v":0},{"$f":"'Sandwiches & Apéro'!F103","v":0},{"$f":"'Sandwiches & Apéro'!G103","v":"CHF"},{"$f":"'Sandwiches & Apéro'!H103","v":0}]
[{"$f":"'Sandwiches & Apéro'!A104","v":"Edamame"},{"$f":"'Sandwiches & Apéro'!B104","v":"pro Person"},{"$f":"'Sandwiches & Apéro'!C104","v":"CHF"},{"$f":"'Sandwiches & Apéro'!D104","v":2.1},{"$f":"'Sandwiches & Apéro'!E104","v":0},{"$f":"'Sandwiches & Apéro'!F104","v":0},{"$f":"'Sandwiches & Apéro'!G104","v":"CHF"},{"$f":"'Sandwiches & Apéro'!H104","v":0}]
[{"$f":"Lunch!A8","v":"Einfacher Lunch\nSandwich gefüllt mit Schinken\nSaisonale Frucht  \nSchoggiriegel "},{"$f":"Lunch!B8","v":"pro Person"},{"$f":"Lunch!C8","v":"CHF"},{"$f":"Lunch!D8","v":8.5},{"$f":"Lunch!E8","v":0},{"$f":"Lunch!F8","v":0},{"$f":"Lunch!G8","v":"CHF"},{"$f":"Lunch!H8","v":0}]
[{"$f":"Lunch!A9","v":"Einfacher Lunch\nSandwich gefüllt mit Salam\nSaisonale Frucht  \nSchoggiriegel "},{"$f":"Lunch!B9","v":"pro Person"},{"$f":"Lunch!C9","v":"CHF"},{"$f":"Lunch!D9","v":8.5},{"$f":"Lunch!E9","v":0},{"$f":"Lunch!F9","v":0},{"$f":"Lunch!G9","v":"CHF"},{"$f":"Lunch!H9","v":0}]
[{"$f":"Lunch!A10","v":"Einfacher Lunch\nSandwich gefüllt mit Käse\nSaisonale Frucht  \nSchoggiriegel "},{"$f":"Lunch!B10","v":"pro Person"},{"$f":"Lunch!C10","v":"CHF"},{"$f":"Lunch!D10","v":8.5},{"$f":"Lunch!E10","v":0},{"$f":"Lunch!F10","v":0},{"$f":"Lunch!G10","v":"CHF"},{"$f":"Lunch!H10","v":0}]
[{"$f":"Lunch!A11","v":"Swiss Lunch\nPartybrötli mit Bündnerfleisch \nHörnlisalat \nKalte Platte (Käse- und Fleisch gemischt) mit Nussbrot\nSaisonaler Fruchtspiess\nLindor Kugel"},{"$f":"Lunch!B11","v":"pro Person"},{"$f":"Lunch!C11","v":"CHF"},{"$f":"Lunch!D11","v":12.5},{"$f":"Lunch!E11","v":0},{"$f":"Lunch!F11","v":0},{"$f":"Lunch!G11","v":"CHF"},{"$f":"Lunch!H11","v":0}]
[{"$f":"Lunch!A12","v":"Swiss Lunch\nPartybrötli mit Schweizer Käse\nHörnlisalat \nKalte Platte (Käse- und Fleisch gemischt) mit Nussbrot\nSaisonaler Fruchtspiess\nLindor Kugel"},{"$f":"Lunch!B12","v":"pro Person"},{"$f":"Lunch!C12","v":"CHF"},{"$f":"Lunch!D12","v":12.5},{"$f":"Lunch!E12","v":0},{"$f":"Lunch!F12","v":0},{"$f":"Lunch!G12","v":"CHF"},{"$f":"Lunch!H12","v":0}]
[{"$f":"Lunch!A13","v":"Mediterraner Lunch    \nFocaccia gefüllt mit Antipasti Gemüse, \nRucola und Parmaschinken\nGriechischer Salat mit Oliven und Feta\nSaisonaler Fruchtspiess  \nDessert der Saison"},{"$f":"Lunch!B13","v":"pro Person"},{"$f":"Lunch!C13","v":"CHF"},{"$f":"Lunch!D13","v":19.3},{"$f":"Lunch!E13","v":0},{"$f":"Lunch!F13","v":0},{"$f":"Lunch!G13","v":"CHF"},{"$f":"Lunch!H13","v":0}]
[{"$f":"Lunch!A14","v":"Asia Lunch                  \nAsiatischer Glasnudelsalat mit Cashew-Nüssen\nCrevetten Salat Thai Style  im Glas\nPoulet-Satay \nVegetarische Mini-Frühlingsrollen mit Sweet & Sour Dip\nGebackene Banane  "},{"$f":"Lunch!B14","v":"pro Person"},{"$f":"Lunch!C14","v":"CHF"},{"$f":"Lunch!D14","v":22.8},{"$f":"Lunch!E14","v":0},{"$f":"Lunch!F14","v":0},{"$f":"Lunch!G14","v":"CHF"},{"$f":"Lunch!H14","v":0}]
[{"$f":"Lunch!A15","v":"Salat im Glas"},{"$f":"Lunch!B15","v":0},{"$f":"Lunch!C15","v":0},{"$f":"Lunch!D15","v":0},{"$f":"Lunch!E15","v":0},{"$f":"Lunch!F15","v":0},{"$f":"Lunch!G15","v":0},{"$f":"Lunch!H15","v":0}]
[{"$f":"Lunch!A16","v":"Gemischter Saisonsalat mit Kernen & Nüssen  "},{"$f":"Lunch!B16","v":"pro Stück"},{"$f":"Lunch!C16","v":"CHF"},{"$f":"Lunch!D16","v":2.4},{"$f":"Lunch!E16","v":0},{"$f":"Lunch!F16","v":0},{"$f":"Lunch!G16","v":"CHF"},{"$f":"Lunch!H16","v":0}]
[{"$f":"Lunch!A17","v":"Griechischer Salat"},{"$f":"Lunch!B17","v":"pro Stück"},{"$f":"Lunch!C17","v":"CHF"},{"$f":"Lunch!D17","v":2.4},{"$f":"Lunch!E17","v":0},{"$f":"Lunch!F17","v":0},{"$f":"Lunch!G17","v":"CHF"},{"$f":"Lunch!H17","v":0}]
[{"$f":"Lunch!A18","v":"Waldorf Salat"},{"$f":"Lunch!B18","v":"pro Stück"},{"$f":"Lunch!C18","v":"CHF"},{"$f":"Lunch!D18","v":2.7},{"$f":"Lunch!E18","v":0},{"$f":"Lunch!F18","v":0},{"$f":"Lunch!G18","v":"CHF"},{"$f":"Lunch!H18","v":0}]
[{"$f":"Lunch!A19","v":"Wurst-Käse Salat"},{"$f":"Lunch!B19","v":"pro Stück"},{"$f":"Lunch!C19","v":"CHF"},{"$f":"Lunch!D19","v":3.6},{"$f":"Lunch!E19","v":0},{"$f":"Lunch!F19","v":0},{"$f":"Lunch!G19","v":"CHF"},{"$f":"Lunch!H19","v":0}]
[{"$f":"Lunch!A20","v":"Gurkensalat mit Dill"},{"$f":"Lunch!B20","v":"pro Stück"},{"$f":"Lunch!C20","v":"CHF"},{"$f":"Lunch!D20","v":2.1},{"$f":"Lunch!E20","v":0},{"$f":"Lunch!F20","v":0},{"$f":"Lunch!G20","v":"CHF"},{"$f":"Lunch!H20","v":0}]
[{"$f":"Lunch!A21","v":"Ceasar Salat mit Speck und Croutons"},{"$f":"Lunch!B21","v":"pro Stück"},{"$f":"Lunch!C21","v":"CHF"},{"$f":"Lunch!D21","v":3.9},{"$f":"Lunch!E21","v":0},{"$f":"Lunch!F21","v":0},{"$f":"Lunch!G21","v":"CHF"},{"$f":"Lunch!H21","v":0}]
[{"$f":"Lunch!A22","v":"Asiatischer Glasnudelsalat mit Cashew Nüssen"},{"$f":"Lunch!B22","v":"pro Stück"},{"$f":"Lunch!C22","v":"CHF"},{"$f":"Lunch!D22","v":4.2},{"$f":"Lunch!E22","v":0},{"$f":"Lunch!F22","v":0},{"$f":"Lunch!G22","v":"CHF"},{"$f":"Lunch!H22","v":0}]
[{"$f":"Lunch!A23","v":"Poulet Tandoori Salat mit Jogurt und Minze "},{"$f":"Lunch!B23","v":"pro Stück"},{"$f":"Lunch!C23","v":"CHF"},{"$f":"Lunch!D23","v":4.0999999999999996},{"$f":"Lunch!E23","v":0},{"$f":"Lunch!F23","v":0},{"$f":"Lunch!G23","v":"CHF"},{"$f":"Lunch!H23","v":0}]
[{"$f":"Lunch!A24","v":"Avocado Salat mit Mango und Chili"},{"$f":"Lunch!B24","v":"pro Stück"},{"$f":"Lunch!C24","v":"CHF"},{"$f":"Lunch!D24","v":3.9},{"$f":"Lunch!E24","v":0},{"$f":"Lunch!F24","v":0},{"$f":"Lunch!G24","v":"CHF"},{"$f":"Lunch!H24","v":0}]
[{"$f":"Lunch!A25","v":"Taboulée Salat mit Minze"},{"$f":"Lunch!B25","v":"pro Stück"},{"$f":"Lunch!C25","v":"CHF"},{"$f":"Lunch!D25","v":4.5999999999999996},{"$f":"Lunch!E25","v":0},{"$f":"Lunch!F25","v":0},{"$f":"Lunch!G25","v":"CHF"},{"$f":"Lunch!H25","v":0}]
[{"$f":"Lunch!A26","v":"Risoni Salat mit Kräutern, Gurken, Oliven und Tomate"},{"$f":"Lunch!B26","v":"pro Stück"},{"$f":"Lunch!C26","v":"CHF"},{"$f":"Lunch!D26","v":2.2999999999999998},{"$f":"Lunch!E26","v":0},{"$f":"Lunch!F26","v":0},{"$f":"Lunch!G26","v":"CHF"},{"$f":"Lunch!H26","v":0}]
[{"$f":"Lunch!A27","v":"Linsensalat mit Rauchlachs"},{"$f":"Lunch!B27","v":"pro Stück"},{"$f":"Lunch!C27","v":"CHF"},{"$f":"Lunch!D27","v":3.3},{"$f":"Lunch!E27","v":0},{"$f":"Lunch!F27","v":0},{"$f":"Lunch!G27","v":"CHF"},{"$f":"Lunch!H27","v":0}]
[{"$f":"Lunch!A28","v":"Crevetten Salat Thai Style mit Chili, Limetten und Koriander"},{"$f":"Lunch!B28","v":"pro Stück"},{"$f":"Lunch!C28","v":"CHF"},{"$f":"Lunch!D28","v":6.8},{"$f":"Lunch!E28","v":0},{"$f":"Lunch!F28","v":0},{"$f":"Lunch!G28","v":"CHF"},{"$f":"Lunch!H28","v":0}]
[{"$f":"Lunch!A29","v":"Quinoa Salat mit Feta und Avocado             "},{"$f":"Lunch!B29","v":"pro Stück"},{"$f":"Lunch!C29","v":"CHF"},{"$f":"Lunch!D29","v":3.2},{"$f":"Lunch!E29","v":0},{"$f":"Lunch!F29","v":0},{"$f":"Lunch!G29","v":"CHF"},{"$f":"Lunch!H29","v":0}]
[{"$f":"Lunch!A30","v":"Suppen im Weck-Glas\nab 10 Personen bestellbar"},{"$f":"Lunch!B30","v":0},{"$f":"Lunch!C30","v":0},{"$f":"Lunch!D30","v":0},{"$f":"Lunch!E30","v":0},{"$f":"Lunch!F30","v":0},{"$f":"Lunch!G30","v":0},{"$f":"Lunch!H30","v":0}]
[{"$f":"Lunch!A31","v":"Kalte Gazpacho"},{"$f":"Lunch!B31","v":"pro Person"},{"$f":"Lunch!C31","v":"CHF"},{"$f":"Lunch!D31","v":3.9},{"$f":"Lunch!E31","v":0},{"$f":"Lunch!F31","v":0},{"$f":"Lunch!G31","v":"CHF"},{"$f":"Lunch!H31","v":0}]
[{"$f":"Lunch!A32","v":"Tomatensuppe mit Sahne Häubchen"},{"$f":"Lunch!B32","v":"pro Person"},{"$f":"Lunch!C32","v":"CHF"},{"$f":"Lunch!D32","v":2.5},{"$f":"Lunch!E32","v":0},{"$f":"Lunch!F32","v":0},{"$f":"Lunch!G32","v":"CHF"},{"$f":"Lunch!H32","v":0}]
[{"$f":"Lunch!A33","v":"Kalte Avocado-Kokossuppe"},{"$f":"Lunch!B33","v":"pro Person"},{"$f":"Lunch!C33","v":"CHF"},{"$f":"Lunch!D33","v":3.9},{"$f":"Lunch!E33","v":0},{"$f":"Lunch!F33","v":0},{"$f":"Lunch!G33","v":"CHF"},{"$f":"Lunch!H33","v":0}]
[{"$f":"Lunch!A34","v":"Linsen-Ingwer Suppe mit Apfelwürfel"},{"$f":"Lunch!B34","v":"pro Person"},{"$f":"Lunch!C34","v":"CHF"},{"$f":"Lunch!D34","v":2},{"$f":"Lunch!E34","v":0},{"$f":"Lunch!F34","v":0},{"$f":"Lunch!G34","v":"CHF"},{"$f":"Lunch!H34","v":0}]
[{"$f":"Lunch!A35","v":"Vegetarische Gerstensuppe"},{"$f":"Lunch!B35","v":"pro Person"},{"$f":"Lunch!C35","v":"CHF"},{"$f":"Lunch!D35","v":2.8},{"$f":"Lunch!E35","v":0},{"$f":"Lunch!F35","v":0},{"$f":"Lunch!G35","v":"CHF"},{"$f":"Lunch!H35","v":0}]
[{"$f":"Lunch!A36","v":0},{"$f":"Lunch!B36","v":0},{"$f":"Lunch!C36","v":0},{"$f":"Lunch!D36","v":0},{"$f":"Lunch!E36","v":0},{"$f":"Lunch!F36","v":0},{"$f":"Lunch!G36","v":0},{"$f":"Lunch!H36","v":0}]
[{"$f":"Lunch!A37","v":"Lunch warm\nab 10 Personen bestellbar"},{"$f":"Lunch!B37","v":0},{"$f":"Lunch!C37","v":0},{"$f":"Lunch!D37","v":0},{"$f":"Lunch!E37","v":0},{"$f":"Lunch!F37","v":0},{"$f":"Lunch!G37","v":0},{"$f":"Lunch!H37","v":0}]
[{"$f":"Lunch!A38","v":"Tapas Lunchpaket\nAlbondigas\nPatatas Bravas\nQuesadillas (Käse-Chili Füllung)\nDatteln im Speckmantel\nTortilla"},{"$f":"Lunch!B38","v":"pro Person"},{"$f":"Lunch!C38","v":"CHF"},{"$f":"Lunch!D38","v":17.899999999999999},{"$f":"Lunch!E38","v":0},{"$f":"Lunch!F38","v":0},{"$f":"Lunch!G38","v":"CHF"},{"$f":"Lunch!H38","v":0}]
[{"$f":"Lunch!A39","v":"Pasta Plausch \nZweierlei Pasta mit zwei Saucen\nBolognese-, Carbonara-, Napoli- oder Pesto Sauce\nDazu geriebener Parmesan"},{"$f":"Lunch!B39","v":"pro Person"},{"$f":"Lunch!C39","v":"CHF"},{"$f":"Lunch!D39","v":12},{"$f":"Lunch!E39","v":0},{"$f":"Lunch!F39","v":0},{"$f":"Lunch!G39","v":"CHF"},{"$f":"Lunch!H39","v":0}]
[{"$f":"Lunch!A40","v":"India Lunch\nGebackene Samosa mit Chutney \t\nGefülltes Fladenbrot (Indisches Aloo Paratha) \nLinsen Dal im Glas mit Naan Brot\nRote Linsenbällchen mit Minze Dip im Glas\nVerschiedene Pakoras mit Dip \nPaneer auf Spinat – Tomatensauce im Glas\nNaan Brot mit drei Verschiedenen Dipsaucen"},{"$f":"Lunch!B40","v":"pro Person"},{"$f":"Lunch!C40","v":"CHF"},{"$f":"Lunch!D40","v":17.8},{"$f":"Lunch!E40","v":0},{"$f":"Lunch!F40","v":0},{"$f":"Lunch!G40","v":"CHF"},{"$f":"Lunch!H40","v":0}]
[{"$f":"Lunch!A41","v":"Tagesmenu aus dem Restaurant"},{"$f":"Lunch!B41","v":"pro Person"},{"$f":"Lunch!C41","v":"CHF"},{"$f":"Lunch!D41","v":11},{"$f":"Lunch!E41","v":0},{"$f":"Lunch!F41","v":0},{"$f":"Lunch!G41","v":"CHF"},{"$f":"Lunch!H41","v":0}]
[{"$f":"Lunch!A42","v":"Lunch Bag\n"},{"$f":"Lunch!B42","v":0},{"$f":"Lunch!C42","v":0},{"$f":"Lunch!D42","v":0},{"$f":"Lunch!E42","v":0},{"$f":"Lunch!F42","v":0},{"$f":"Lunch!G42","v":0},{"$f":"Lunch!H42","v":0}]
[{"$f":"Lunch!A43","v":"Einfacher Lunch Bag \nLunch Bag gefüllt mit \ngemischtem Salat\nSandwich mit Salami\nSaisonale Frucht   \nSoftdrink nach Wahl\nSchoggiriegel"},{"$f":"Lunch!B43","v":"pro Person"},{"$f":"Lunch!C43","v":"CHF"},{"$f":"Lunch!D43","v":9.9},{"$f":"Lunch!E43","v":0},{"$f":"Lunch!F43","v":0},{"$f":"Lunch!G43","v":"CHF"},{"$f":"Lunch!H43","v":0}]
[{"$f":"Lunch!A44","v":"Einfacher Lunch Bag \nLunch Bag gefüllt mit \ngemischtem Salat\nSandwich mit Schinken\nSaisonale Frucht   \nSoftdrink nach Wahl\nSchoggiriegel"},{"$f":"Lunch!B44","v":"pro Person"},{"$f":"Lunch!C44","v":"CHF"},{"$f":"Lunch!D44","v":9.9},{"$f":"Lunch!E44","v":0},{"$f":"Lunch!F44","v":0},{"$f":"Lunch!G44","v":"CHF"},{"$f":"Lunch!H44","v":0}]
[{"$f":"Lunch!A45","v":"Einfacher Lunch Bag \nLunch Bag gefüllt mit \ngemischtem Salat\nSandwich mit Fleischkäse\nSaisonale Frucht   \nSoftdrink nach Wahl\nSchoggiriegel"},{"$f":"Lunch!B45","v":"pro Person"},{"$f":"Lunch!C45","v":"CHF"},{"$f":"Lunch!D45","v":9.9},{"$f":"Lunch!E45","v":0},{"$f":"Lunch!F45","v":0},{"$f":"Lunch!G45","v":"CHF"},{"$f":"Lunch!H45","v":0}]
[{"$f":"Lunch!A46","v":"Einfacher Lunch Bag\nLunch Bag gefüllt mit \ngemischtem Salat\nSandwich mit Trutenfleisch\nSaisonale Frucht   \nSoftdrink nach Wahl\nSchoggiriegel"},{"$f":"Lunch!B46","v":"pro Person"},{"$f":"Lunch!C46","v":"CHF"},{"$f":"Lunch!D46","v":9.9},{"$f":"Lunch!E46","v":0},{"$f":"Lunch!F46","v":0},{"$f":"Lunch!G46","v":"CHF"},{"$f":"Lunch!H46","v":0}]
[{"$f":"Lunch!A47","v":"Italienischer Lunch Bag \nLunch Bag gefüllt mit \nTomaten-Mozzarella Salat\nFocaccia mit Rohschinken\nSaisonale Frucht   \nSoftdrink nach Wahl\nSchoggiriegel"},{"$f":"Lunch!B47","v":"pro Person"},{"$f":"Lunch!C47","v":"CHF"},{"$f":"Lunch!D47","v":12.9},{"$f":"Lunch!E47","v":0},{"$f":"Lunch!F47","v":0},{"$f":"Lunch!G47","v":"CHF"},{"$f":"Lunch!H47","v":0}]
[{"$f":"Lunch!A48","v":"Italienischer Lunch Bag \nLunch Bag gefüllt mit \nTomaten-Mozzarella Salat\nFocaccia mit Antipasti\nSaisonale Frucht   \nSoftdrink nach Wahl\nSchoggiriegel"},{"$f":"Lunch!B48","v":"pro Person"},{"$f":"Lunch!C48","v":"CHF"},{"$f":"Lunch!D48","v":12.9},{"$f":"Lunch!E48","v":0},{"$f":"Lunch!F48","v":0},{"$f":"Lunch!G48","v":"CHF"},{"$f":"Lunch!H48","v":0}]
[{"$f":"Lunch!A49","v":"Italienischer Lunch Bag \nLunch Bag gefüllt mit \nTomaten-Mozzarella Salat\nFocaccia mit Poulet\nSaisonale Frucht   \nSoftdrink nach Wahl\nSchoggiriegel"},{"$f":"Lunch!B49","v":"pro Person"},{"$f":"Lunch!C49","v":"CHF"},{"$f":"Lunch!D49","v":12.9},{"$f":"Lunch!E49","v":0},{"$f":"Lunch!F49","v":0},{"$f":"Lunch!G49","v":"CHF"},{"$f":"Lunch!H49","v":0}]
[{"$f":"Lunch!A50","v":"Vegi Lunch Bag\nLunch Bag gefüllt mit \ngemischtem Salat\nVollkornsandwich mit Brie\nSaisonale Frucht   \nSoftdrink nach Wahl\nMüsliriegel"},{"$f":"Lunch!B50","v":"pro Person"},{"$f":"Lunch!C50","v":"CHF"},{"$f":"Lunch!D50","v":10.9},{"$f":"Lunch!E50","v":0},{"$f":"Lunch!F50","v":0},{"$f":"Lunch!G50","v":"CHF"},{"$f":"Lunch!H50","v":0}]
[{"$f":"Lunch!A51","v":"Vegi Lunch Bag\nLunch Bag gefüllt mit \ngemischtem Salat\nVollkornsandwich mit Hartkäse\nSaisonale Frucht   \nSoftdrink nach Wahl\nMüsliriegel"},{"$f":"Lunch!B51","v":"pro Person"},{"$f":"Lunch!C51","v":"CHF"},{"$f":"Lunch!D51","v":10.9},{"$f":"Lunch!E51","v":0},{"$f":"Lunch!F51","v":0},{"$f":"Lunch!G51","v":"CHF"},{"$f":"Lunch!H51","v":0}]
[{"$f":"Lunch!A52","v":"Vegi Lunch Bag\nLunch Bag gefüllt mit \ngemischtem Salat\nVollkornsandwich mit Ei\nSaisonale Frucht   \nSoftdrink nach Wahl\nMüsliriegel"},{"$f":"Lunch!B52","v":"pro Person"},{"$f":"Lunch!C52","v":"CHF"},{"$f":"Lunch!D52","v":10.9},{"$f":"Lunch!E52","v":0},{"$f":"Lunch!F52","v":0},{"$f":"Lunch!G52","v":"CHF"},{"$f":"Lunch!H52","v":0}]
[{"$f":"Dessert!A7","v":"Saisonales Tagesdessert im Glas   "},{"$f":"Dessert!B7","v":"pro Stück"},{"$f":"Dessert!C7","v":"CHF"},{"$f":"Dessert!D7","v":2},{"$f":"Dessert!E7","v":0},{"$f":"Dessert!F7","v":0},{"$f":"Dessert!G7","v":"CHF"},{"$f":"Dessert!H7","v":0}]
[{"$f":"Dessert!A8","v":"Toblerone-Mousse im Glas"},{"$f":"Dessert!B8","v":"pro Stück"},{"$f":"Dessert!C8","v":"CHF"},{"$f":"Dessert!D8","v":2.5},{"$f":"Dessert!E8","v":0},{"$f":"Dessert!F8","v":0},{"$f":"Dessert!G8","v":"CHF"},{"$f":"Dessert!H8","v":0}]
[{"$f":"Dessert!A9","v":"Schoko-Kuss"},{"$f":"Dessert!B9","v":"pro Stück"},{"$f":"Dessert!C9","v":"CHF"},{"$f":"Dessert!D9","v":1.8},{"$f":"Dessert!E9","v":0},{"$f":"Dessert!F9","v":0},{"$f":"Dessert!G9","v":"CHF"},{"$f":"Dessert!H9","v":0}]
[{"$f":"Dessert!A10","v":"Saisonaler Fruchtspiess"},{"$f":"Dessert!B10","v":"pro Stück"},{"$f":"Dessert!C10","v":"CHF"},{"$f":"Dessert!D10","v":2},{"$f":"Dessert!E10","v":0},{"$f":"Dessert!F10","v":0},{"$f":"Dessert!G10","v":"CHF"},{"$f":"Dessert!H10","v":0}]
[{"$f":"Dessert!A11","v":"Hausgemachtes Mini Pana Cotta mit saisonalen Früchten  "},{"$f":"Dessert!B11","v":"pro Stück"},{"$f":"Dessert!C11","v":"CHF"},{"$f":"Dessert!D11","v":2},{"$f":"Dessert!E11","v":0},{"$f":"Dessert!F11","v":0},{"$f":"Dessert!G11","v":"CHF"},{"$f":"Dessert!H11","v":0}]
[{"$f":"Dessert!A12","v":"Schokoladenkuchen\n"},{"$f":"Dessert!B12","v":"pro Person"},{"$f":"Dessert!C12","v":"CHF"},{"$f":"Dessert!D12","v":2.8},{"$f":"Dessert!E12","v":0},{"$f":"Dessert!F12","v":0},{"$f":"Dessert!G12","v":"CHF"},{"$f":"Dessert!H12","v":0}]
[{"$f":"Dessert!A13","v":"Zitronenkuchen\n"},{"$f":"Dessert!B13","v":"pro Person"},{"$f":"Dessert!C13","v":"CHF"},{"$f":"Dessert!D13","v":2.8},{"$f":"Dessert!E13","v":0},{"$f":"Dessert!F13","v":0},{"$f":"Dessert!G13","v":"CHF"},{"$f":"Dessert!H13","v":0}]
[{"$f":"Dessert!A14","v":" Tiroler Cake\n"},{"$f":"Dessert!B14","v":"pro Person"},{"$f":"Dessert!C14","v":"CHF"},{"$f":"Dessert!D14","v":2.8},{"$f":"Dessert!E14","v":0},{"$f":"Dessert!F14","v":0},{"$f":"Dessert!G14","v":"CHF"},{"$f":"Dessert!H14","v":0}]
[{"$f":"Dessert!A15","v":"Rüeblikuchen"},{"$f":"Dessert!B15","v":"pro Person"},{"$f":"Dessert!C15","v":"CHF"},{"$f":"Dessert!D15","v":2.8},{"$f":"Dessert!E15","v":0},{"$f":"Dessert!F15","v":0},{"$f":"Dessert!G15","v":"CHF"},{"$f":"Dessert!H15","v":0}]
[{"$f":"Dessert!A16","v":"Schoggibrötli Fairtrade"},{"$f":"Dessert!B16","v":"pro Stück"},{"$f":"Dessert!C16","v":"CHF"},{"$f":"Dessert!D16","v":1.7},{"$f":"Dessert!E16","v":0},{"$f":"Dessert!F16","v":0},{"$f":"Dessert!G16","v":"CHF"},{"$f":"Dessert!H16","v":0}]
[{"$f":"Dessert!A17","v":"Brownie"},{"$f":"Dessert!B17","v":"pro Stück"},{"$f":"Dessert!C17","v":"CHF"},{"$f":"Dessert!D17","v":3},{"$f":"Dessert!E17","v":0},{"$f":"Dessert!F17","v":0},{"$f":"Dessert!G17","v":"CHF"},{"$f":"Dessert!H17","v":0}]
[{"$f":"Dessert!A18","v":"Mini Patisserie, assortiert"},{"$f":"Dessert!B18","v":"pro Stück"},{"$f":"Dessert!C18","v":"CHF"},{"$f":"Dessert!D18","v":2.2000000000000002},{"$f":"Dessert!E18","v":0},{"$f":"Dessert!F18","v":0},{"$f":"Dessert!G18","v":"CHF"},{"$f":"Dessert!H18","v":0}]
[{"$f":"Dessert!A19","v":"Muffins\n(Blueberry, Schokolade, Himbeere)"},{"$f":"Dessert!B19","v":"pro Stück"},{"$f":"Dessert!C19","v":"CHF"},{"$f":"Dessert!D19","v":4.8},{"$f":"Dessert!E19","v":0},{"$f":"Dessert!F19","v":0},{"$f":"Dessert!G19","v":"CHF"},{"$f":"Dessert!H19","v":0}]
[{"$f":"Dessert!A20","v":"Cookies\n(Schokolade, Macadamia, ChocolateChip, Walnuss, Butter)"},{"$f":"Dessert!B20","v":"pro Person"},{"$f":"Dessert!C20","v":"CHF"},{"$f":"Dessert!D20","v":4.9000000000000004},{"$f":"Dessert!E20","v":0},{"$f":"Dessert!F20","v":0},{"$f":"Dessert!G20","v":"CHF"},{"$f":"Dessert!H20","v":0}]
[{"$f":"Dessert!A21","v":"Macarons assortiert"},{"$f":"Dessert!B21","v":"pro Person"},{"$f":"Dessert!C21","v":"CHF"},{"$f":"Dessert!D21","v":2},{"$f":"Dessert!E21","v":0},{"$f":"Dessert!F21","v":0},{"$f":"Dessert!G21","v":"CHF"},{"$f":"Dessert!H21","v":0}]
[{"$f":"Dessert!A22","v":"Chiapudding"},{"$f":"Dessert!B22","v":"pro Person"},{"$f":"Dessert!C22","v":"CHF"},{"$f":"Dessert!D22","v":2.2000000000000002},{"$f":"Dessert!E22","v":0},{"$f":"Dessert!F22","v":0},{"$f":"Dessert!G22","v":"CHF"},{"$f":"Dessert!H22","v":0}]
[{"$f":"Dessert!A23","v":"Creme Schnitte"},{"$f":"Dessert!B23","v":"pro Stück"},{"$f":"Dessert!C23","v":"CHF"},{"$f":"Dessert!D23","v":5.3},{"$f":"Dessert!E23","v":0},{"$f":"Dessert!F23","v":0},{"$f":"Dessert!G23","v":"CHF"},{"$f":"Dessert!H23","v":0}]
[{"$f":"Dessert!A24","v":"Veganes Panna Cotta mit Fruchttopping"},{"$f":"Dessert!B24","v":"pro Stück"},{"$f":"Dessert!C24","v":"CHF"},{"$f":"Dessert!D24","v":4.8},{"$f":"Dessert!E24","v":0},{"$f":"Dessert!F24","v":0},{"$f":"Dessert!G24","v":"CHF"},{"$f":"Dessert!H24","v":0}]
[{"$f":"Dessert!A25","v":"Veganer Apfelstrudel"},{"$f":"Dessert!B25","v":"pro Stück"},{"$f":"Dessert!C25","v":"CHF"},{"$f":"Dessert!D25","v":5},{"$f":"Dessert!E25","v":0},{"$f":"Dessert!F25","v":0},{"$f":"Dessert!G25","v":"CHF"},{"$f":"Dessert!H25","v":0}]
[{"$f":"Dessert!A26","v":"Kichererbsen-Schokoladenmousse"},{"$f":"Dessert!B26","v":"pro Stück"},{"$f":"Dessert!C26","v":"CHF"},{"$f":"Dessert!D26","v":2.7},{"$f":"Dessert!E26","v":0},{"$f":"Dessert!F26","v":0},{"$f":"Dessert!G26","v":"CHF"},{"$f":"Dessert!H26","v":0}]
[{"$f":"Dessert!A27","v":"Geburtstagskuche und Glace"},{"$f":"Dessert!B27","v":"nach Absprache"},{"$f":"Dessert!C27","v":0},{"$f":"Dessert!D27","v":0},{"$f":"Dessert!E27","v":0},{"$f":"Dessert!F27","v":0},{"$f":"Dessert!G27","v":0},{"$f":"Dessert!H27","v":0}]
[{"$f":"Getränke!A9","v":"Valser mit Kohlensäure, PET"},{"$f":"Getränke!B9","v":"0.5 l"},{"$f":"Getränke!C9","v":"CHF"},{"$f":"Getränke!D9","v":3},{"$f":"Getränke!E9","v":0},{"$f":"Getränke!F9","v":0},{"$f":"Getränke!G9","v":"CHF"},{"$f":"Getränke!H9","v":0}]
[{"$f":"Getränke!A10","v":"Arkina ohne Kohlensäure, PET"},{"$f":"Getränke!B10","v":"0.5 l"},{"$f":"Getränke!C10","v":"CHF"},{"$f":"Getränke!D10","v":3},{"$f":"Getränke!E10","v":0},{"$f":"Getränke!F10","v":0},{"$f":"Getränke!G10","v":"CHF"},{"$f":"Getränke!H10","v":0}]
[{"$f":"Getränke!A11","v":"Valser mit Kohlensäure, Glas"},{"$f":"Getränke!B11","v":"1l"},{"$f":"Getränke!C11","v":"CHF"},{"$f":"Getränke!D11","v":5},{"$f":"Getränke!E11","v":0},{"$f":"Getränke!F11","v":0},{"$f":"Getränke!G11","v":"CHF"},{"$f":"Getränke!H11","v":0}]
[{"$f":"Getränke!A12","v":"Arkina ohne Kohlensäure, Glas"},{"$f":"Getränke!B12","v":"1l"},{"$f":"Getränke!C12","v":"CHF"},{"$f":"Getränke!D12","v":5},{"$f":"Getränke!E12","v":0},{"$f":"Getränke!F12","v":0},{"$f":"Getränke!G12","v":"CHF"},{"$f":"Getränke!H12","v":0}]
[{"$f":"Getränke!A13","v":"Flavored Water mit saisonalem Geschmack  "},{"$f":"Getränke!B13","v":"4l"},{"$f":"Getränke!C13","v":"CHF"},{"$f":"Getränke!D13","v":25},{"$f":"Getränke!E13","v":0},{"$f":"Getränke!F13","v":0},{"$f":"Getränke!G13","v":"CHF"},{"$f":"Getränke!H13","v":0}]
[{"$f":"Getränke!A14","v":"Flavored Water mit saisonalem Geschmack "},{"$f":"Getränke!B14","v":"pro Glas"},{"$f":"Getränke!C14","v":"CHF"},{"$f":"Getränke!D14","v":1.5},{"$f":"Getränke!E14","v":0},{"$f":"Getränke!F14","v":0},{"$f":"Getränke!G14","v":"CHF"},{"$f":"Getränke!H14","v":0}]
[{"$f":"Getränke!A15","v":"Säfte und Hausgemachtes"},{"$f":"Getränke!B15","v":0},{"$f":"Getränke!C15","v":0},{"$f":"Getränke!D15","v":0},{"$f":"Getränke!E15","v":0},{"$f":"Getränke!F15","v":0},{"$f":"Getränke!G15","v":0},{"$f":"Getränke!H15","v":0}]
[{"$f":"Getränke!A16","v":"Orangensaft"},{"$f":"Getränke!B16","v":"1 l"},{"$f":"Getränke!C16","v":"CHF"},{"$f":"Getränke!D16","v":6},{"$f":"Getränke!E16","v":0},{"$f":"Getränke!F16","v":0},{"$f":"Getränke!G16","v":"CHF"},{"$f":"Getränke!H16","v":0}]
[{"$f":"Getränke!A17","v":"Hausgemachter Eistee  "},{"$f":"Getränke!B17","v":"1 l"},{"$f":"Getränke!C17","v":"CHF"},{"$f":"Getränke!D17","v":8},{"$f":"Getränke!E17","v":0},{"$f":"Getränke!F17","v":0},{"$f":"Getränke!G17","v":"CHF"},{"$f":"Getränke!H17","v":0}]
[{"$f":"Getränke!A18","v":"Hausgemachter Eistee  "},{"$f":"Getränke!B18","v":"4 l"},{"$f":"Getränke!C18","v":"CHF"},{"$f":"Getränke!D18","v":25},{"$f":"Getränke!E18","v":0},{"$f":"Getränke!F18","v":0},{"$f":"Getränke!G18","v":"CHF"},{"$f":"Getränke!H18","v":0}]
[{"$f":"Getränke!A19","v":"Saisonaler Mocktail "},{"$f":"Getränke!B19","v":"pro Glas"},{"$f":"Getränke!C19","v":"CHF"},{"$f":"Getränke!D19","v":4.5999999999999996},{"$f":"Getränke!E19","v":0},{"$f":"Getränke!F19","v":0},{"$f":"Getränke!G19","v":"CHF"},{"$f":"Getränke!H19","v":0}]
[{"$f":"Getränke!A20","v":"Süssgetränke"},{"$f":"Getränke!B20","v":0},{"$f":"Getränke!C20","v":0},{"$f":"Getränke!D20","v":0},{"$f":"Getränke!E20","v":0},{"$f":"Getränke!F20","v":0},{"$f":"Getränke!G20","v":0},{"$f":"Getränke!H20","v":0}]
[{"$f":"Getränke!A21","v":"Coca-Cola"},{"$f":"Getränke!B21","v":"4.5 dl"},{"$f":"Getränke!C21","v":"CHF"},{"$f":"Getränke!D21","v":3},{"$f":"Getränke!E21","v":0},{"$f":"Getränke!F21","v":0},{"$f":"Getränke!G21","v":"CHF"},{"$f":"Getränke!H21","v":0}]
[{"$f":"Getränke!A22","v":"Coca-Cola Light"},{"$f":"Getränke!B22","v":"4.5 dl"},{"$f":"Getränke!C22","v":"CHF"},{"$f":"Getränke!D22","v":3},{"$f":"Getränke!E22","v":0},{"$f":"Getränke!F22","v":0},{"$f":"Getränke!G22","v":"CHF"},{"$f":"Getränke!H22","v":0}]
[{"$f":"Getränke!A23","v":"Coke Zero"},{"$f":"Getränke!B23","v":"4.5 dl"},{"$f":"Getränke!C23","v":"CHF"},{"$f":"Getränke!D23","v":3},{"$f":"Getränke!E23","v":0},{"$f":"Getränke!F23","v":0},{"$f":"Getränke!G23","v":"CHF"},{"$f":"Getränke!H23","v":0}]
[{"$f":"Getränke!A24","v":"Fanta"},{"$f":"Getränke!B24","v":"5 dl"},{"$f":"Getränke!C24","v":"CHF"},{"$f":"Getränke!D24","v":3},{"$f":"Getränke!E24","v":0},{"$f":"Getränke!F24","v":0},{"$f":"Getränke!G24","v":"CHF"},{"$f":"Getränke!H24","v":0}]
[{"$f":"Getränke!A25","v":"Sprite"},{"$f":"Getränke!B25","v":"5 dl"},{"$f":"Getränke!C25","v":"CHF"},{"$f":"Getränke!D25","v":3},{"$f":"Getränke!E25","v":0},{"$f":"Getränke!F25","v":0},{"$f":"Getränke!G25","v":"CHF"},{"$f":"Getränke!H25","v":0}]
[{"$f":"Getränke!A26","v":"Fusetea Lemon"},{"$f":"Getränke!B26","v":"5 dl"},{"$f":"Getränke!C26","v":"CHF"},{"$f":"Getränke!D26","v":3},{"$f":"Getränke!E26","v":0},{"$f":"Getränke!F26","v":0},{"$f":"Getränke!G26","v":"CHF"},{"$f":"Getränke!H26","v":0}]
[{"$f":"Getränke!A27","v":"Fusetea Peach"},{"$f":"Getränke!B27","v":"5 dl"},{"$f":"Getränke!C27","v":"CHF"},{"$f":"Getränke!D27","v":3},{"$f":"Getränke!E27","v":0},{"$f":"Getränke!F27","v":0},{"$f":"Getränke!G27","v":"CHF"},{"$f":"Getränke!H27","v":0}]
[{"$f":"Getränke!A28","v":"Rivella rot "},{"$f":"Getränke!B28","v":"5 dl"},{"$f":"Getränke!C28","v":"CHF"},{"$f":"Getränke!D28","v":3},{"$f":"Getränke!E28","v":0},{"$f":"Getränke!F28","v":0},{"$f":"Getränke!G28","v":"CHF"},{"$f":"Getränke!H28","v":0}]
[{"$f":"Getränke!A29","v":"Rivella blau "},{"$f":"Getränke!B29","v":"5 dl"},{"$f":"Getränke!C29","v":"CHF"},{"$f":"Getränke!D29","v":3},{"$f":"Getränke!E29","v":0},{"$f":"Getränke!F29","v":0},{"$f":"Getränke!G29","v":"CHF"},{"$f":"Getränke!H29","v":0}]
[{"$f":"Getränke!A30","v":"Rivella grün"},{"$f":"Getränke!B30","v":"5 dl"},{"$f":"Getränke!C30","v":"CHF"},{"$f":"Getränke!D30","v":3},{"$f":"Getränke!E30","v":0},{"$f":"Getränke!F30","v":0},{"$f":"Getränke!G30","v":"CHF"},{"$f":"Getränke!H30","v":0}]
[{"$f":"Getränke!A31","v":"Fritz Cola"},{"$f":"Getränke!B31","v":0},{"$f":"Getränke!C31","v":0},{"$f":"Getränke!D31","v":3},{"$f":"Getränke!E31","v":0},{"$f":"Getränke!F31","v":0},{"$f":"Getränke!G31","v":"CHF"},{"$f":"Getränke!H31","v":0}]
[{"$f":"Getränke!A32","v":"Ramseier Apfelschorle"},{"$f":"Getränke!B32","v":"5 dl"},{"$f":"Getränke!C32","v":"CHF"},{"$f":"Getränke!D32","v":3},{"$f":"Getränke!E32","v":0},{"$f":"Getränke!F32","v":0},{"$f":"Getränke!G32","v":"CHF"},{"$f":"Getränke!H32","v":0}]
[{"$f":"Getränke!A33","v":"Red Bull"},{"$f":"Getränke!B33","v":"2.5 dl"},{"$f":"Getränke!C33","v":"CHF"},{"$f":"Getränke!D33","v":3},{"$f":"Getränke!E33","v":0},{"$f":"Getränke!F33","v":0},{"$f":"Getränke!G33","v":"CHF"},{"$f":"Getränke!H33","v":0}]
[{"$f":"Getränke!A34","v":"El Tony"},{"$f":"Getränke!B34","v":"3.3 dl"},{"$f":"Getränke!C34","v":"CHF"},{"$f":"Getränke!D34","v":3},{"$f":"Getränke!E34","v":0},{"$f":"Getränke!F34","v":0},{"$f":"Getränke!G34","v":"CHF"},{"$f":"Getränke!H34","v":0}]
[{"$f":"Getränke!A35","v":"Vitamin Wasser"},{"$f":"Getränke!B35","v":"5 dl"},{"$f":"Getränke!C35","v":"CHF"},{"$f":"Getränke!D35","v":3},{"$f":"Getränke!E35","v":0},{"$f":"Getränke!F35","v":0},{"$f":"Getränke!G35","v":"CHF"},{"$f":"Getränke!H35","v":0}]
[{"$f":"Getränke!A36","v":"Yogi Drink"},{"$f":"Getränke!B36","v":"2dl"},{"$f":"Getränke!C36","v":0},{"$f":"Getränke!D36","v":2.2000000000000002},{"$f":"Getränke!E36","v":0},{"$f":"Getränke!F36","v":0},{"$f":"Getränke!G36","v":"CHF"},{"$f":"Getränke!H36","v":0}]
[{"$f":"Getränke!A37","v":"Comella"},{"$f":"Getränke!B37","v":"3.3 dl"},{"$f":"Getränke!C37","v":"CHF"},{"$f":"Getränke!D37","v":2.2000000000000002},{"$f":"Getränke!E37","v":0},{"$f":"Getränke!F37","v":0},{"$f":"Getränke!G37","v":"CHF"},{"$f":"Getränke!H37","v":0}]
[{"$f":"Getränke!A38","v":"Emmi Café Latte "},{"$f":"Getränke!B38","v":"2.3 dl"},{"$f":"Getränke!C38","v":"CHF"},{"$f":"Getränke!D38","v":2.6},{"$f":"Getränke!E38","v":0},{"$f":"Getränke!F38","v":0},{"$f":"Getränke!G38","v":"CHF"},{"$f":"Getränke!H38","v":0}]
[{"$f":"Getränke!A39","v":"Tee"},{"$f":"Getränke!B39","v":0},{"$f":"Getränke!C39","v":0},{"$f":"Getränke!D39","v":0},{"$f":"Getränke!E39","v":0},{"$f":"Getränke!F39","v":0},{"$f":"Getränke!G39","v":0},{"$f":"Getränke!H39","v":0}]
[{"$f":"Getränke!A40","v":"Diverse Sorten, assortiert"},{"$f":"Getränke!B40","v":"pro Tasse"},{"$f":"Getränke!C40","v":"CHF"},{"$f":"Getränke!D40","v":2.5},{"$f":"Getränke!E40","v":0},{"$f":"Getränke!F40","v":0},{"$f":"Getränke!G40","v":"CHF"},{"$f":"Getränke!H40","v":0}]
[{"$f":"Getränke!A41","v":"Kaffee"},{"$f":"Getränke!B41","v":0},{"$f":"Getränke!C41","v":0},{"$f":"Getränke!D41","v":0},{"$f":"Getränke!E41","v":0},{"$f":"Getränke!F41","v":0},{"$f":"Getränke!G41","v":0},{"$f":"Getränke!H41","v":0}]
[{"$f":"Getränke!A42","v":"Nespresso Pads Kaffe"},{"$f":"Getränke!B42","v":"pro Tasse"},{"$f":"Getränke!C42","v":"CHF"},{"$f":"Getränke!D42","v":2.5},{"$f":"Getränke!E42","v":0},{"$f":"Getränke!F42","v":0},{"$f":"Getränke!G42","v":"CHF"},{"$f":"Getränke!H42","v":0}]
[{"$f":"Getränke!A43","v":"Alkoholische Getränke"},{"$f":"Getränke!B43","v":0},{"$f":"Getränke!C43","v":0},{"$f":"Getränke!D43","v":0},{"$f":"Getränke!E43","v":0},{"$f":"Getränke!F43","v":0},{"$f":"Getränke!G43","v":0},{"$f":"Getränke!H43","v":0}]
[{"$f":"Getränke!A44","v":"Bier"},{"$f":"Getränke!B44","v":0},{"$f":"Getränke!C44","v":0},{"$f":"Getränke!D44","v":0},{"$f":"Getränke!E44","v":0},{"$f":"Getränke!F44","v":0},{"$f":"Getränke!G44","v":0},{"$f":"Getränke!H44","v":0}]
[{"$f":"Getränke!A45","v":"FHGR Studi Bier (Brauerei Monstein Davos)"},{"$f":"Getränke!B45","v":"33cl"},{"$f":"Getränke!C45","v":"CHF"},{"$f":"Getränke!D45","v":4.5},{"$f":"Getränke!E45","v":0},{"$f":"Getränke!F45","v":0},{"$f":"Getränke!G45","v":"CHF"},{"$f":"Getränke!H45","v":0}]
[{"$f":"Getränke!A46","v":"Weisswein"},{"$f":"Getränke!B46","v":0},{"$f":"Getränke!C46","v":0},{"$f":"Getränke!D46","v":0},{"$f":"Getränke!E46","v":0},{"$f":"Getränke!F46","v":0},{"$f":"Getränke!G46","v":0},{"$f":"Getränke!H46","v":0}]
[{"$f":"Getränke!A47","v":"Pinot Blanc Grond AOC, Davaz, Fläsch"},{"$f":"Getränke!B47","v":"7.5 dl"},{"$f":"Getränke!C47","v":"CHF"},{"$f":"Getränke!D47","v":31.5},{"$f":"Getränke!E47","v":0},{"$f":"Getränke!F47","v":0},{"$f":"Getränke!G47","v":"CHF"},{"$f":"Getränke!H47","v":0}]
[{"$f":"Getränke!A48","v":"Preis nur gültig bei internen Anlässen mit KST Nummer(Zapfengeld)"},{"$f":"Getränke!B48","v":0},{"$f":"Getränke!C48","v":0},{"$f":"Getränke!D48","v":0},{"$f":"Getränke!E48","v":0},{"$f":"Getränke!F48","v":0},{"$f":"Getränke!G48","v":"CHF"},{"$f":"Getränke!H48","v":0}]
[{"$f":"Getränke!A49","v":"Rotwein"},{"$f":"Getränke!B49","v":0},{"$f":"Getränke!C49","v":0},{"$f":"Getränke!D49","v":0},{"$f":"Getränke!E49","v":0},{"$f":"Getränke!F49","v":0},{"$f":"Getränke!G49","v":0},{"$f":"Getränke!H49","v":0}]
[{"$f":"Getränke!A50","v":"Pinot Noir Grond AOC, Davaz, Fläsch"},{"$f":"Getränke!B50","v":"7.5 dl"},{"$f":"Getränke!C50","v":"CHF"},{"$f":"Getränke!D50","v":42},{"$f":"Getränke!E50","v":0},{"$f":"Getränke!F50","v":0},{"$f":"Getränke!G50","v":"CHF"},{"$f":"Getränke!H50","v":0}]
[{"$f":"Getränke!A51","v":"Preis nur gültig bei internen Anlässen mit KST Nummer(Zapfengeld)"},{"$f":"Getränke!B51","v":0},{"$f":"Getränke!C51","v":0},{"$f":"Getränke!D51","v":0},{"$f":"Getränke!E51","v":0},{"$f":"Getränke!F51","v":0},{"$f":"Getränke!G51","v":0},{"$f":"Getränke!H51","v":0}]
[{"$f":"Getränke!#REF!","v":{"$error":"#REF!"}},{"$f":"Getränke!#REF!","v":{"$error":"#REF!"}},{"$f":"Getränke!#REF!","v":{"$error":"#REF!"}},{"$f":"Getränke!#REF!","v":{"$error":"#REF!"}},{"$f":"Getränke!#REF!","v":{"$error":"#REF!"}},{"$f":"Getränke!#REF!","v":{"$error":"#REF!"}},{"$f":"Getränke!#REF!","v":{"$error":"#REF!"}},{"$f":"Getränke!#REF!","v":{"$error":"#REF!"}}]
[{"$f":"Getränke!A52","v":0},{"$f":"Getränke!B52","v":0},{"$f":"Getränke!C52","v":0},{"$f":"Getränke!D52","v":0},{"$f":"Getränke!E52","v":0},{"$f":"Getränke!F52","v":0},{"$f":"Getränke!G52","v":0},{"$f":"Getränke!H52","v":0}]
[]
["Total (inkl. MWST)",null,null,null,null,null,"CHF",{"$f":"SUM(H20:H277)","v":{"$error":"#REF!"}}]
[]
["Vielen Dank für Ihre Bestellung!"]

{"sheet":"Frühstück und Coffee Break","index":1,"n_rows":47,"n_cols":8,"rows_kept":47,"cut":false,"hidden":false,"merged":[[2,0,2,7]]}
[" Bestellung Catering"]
[]
[]
["Navigieren Sie ganz unkompiziert durch das Bestellformular."]
[null,"Einheit",null,"Preis/Einheit",null,"Anzahl",null,"Total"]
["Frühstück \nCombos ab 5 Personen bestellbar"]
["Einfaches Frühstück \nOrangensaft \nFrisches Gipfeli oder knuspriges Brötchen\nSaisonale Frucht   \nHausgemachtes Flavoured Water   ","pro Person","CHF",7.4,null,null,"CHF",{"$f":"IF(F7=0,0,IF(F7<5,D7*5,IF(F7>=5,D7*F7)))","v":0}]
["Vital Frühstück \nOrangensaft \nFrisches Gipfeli oder knuspriges Brötchen\nButter und Konfitüre\nBirchermüesli\nSaisonale Frucht  \nHausgemachtes Flavoured Water ","pro Person","CHF",9.4,null,null,"CHF",0]
["Vital Frühstück \nOrangensaft \nFrisches Gipfeli oder knuspriges Brötchen\nButter und Konfitüre\nJogurt mit Früchte Topping\nSaisonale Frucht  \nHausgemachtes Flavoured Water ","pro Person","CHF",9.4,null,null,"CHF",0]
["Glutenarmes Frühstück \nOrangensaft \nGlutenfreies Brötchen (separat verpackt)\nButter und Konfitüre\nJogurt mit Früchte Topping\nSaisonale Frucht  \nHausgemachtes Flavoured Water                                                    ","pro Person","CHF",9.4,null,null,"CHF",{"$f":"IF(F10=0,0,IF(F10<5,D10*5,IF(F10>=5,D10*F10)))","v":0}]
["Veganes Frühstück\nFrischer Kaffee oder Tee\nOrangensaft \nVeganes Birchermüesli\nSüsskartoffel Toast mit veganem Topping\nHausgemachtes Flavoured Water","pro Person","CHF",15.5,null,null,"CHF",{"$f":"IF(F11=0,0,IF(F11<5,D11*5,IF(F11>=5,D11*F11)))","v":0}]
["Add-Ons / Snacks\nFrühstück ab 5 Personen bestellbar"]
["Buttergipfeli","pro Stück","CHF",1.3,null,null,"CHF",{"$f":"IF(F13=0,0,IF(F13<5,D13*5,IF(F13>=5,D13*F13)))","v":0}]
["Laugengipfeli","pro Stück","CHF",1.9,null,null,"CHF",0]
["Rusticogipfeli","pro Stück","CHF",1.9,null,null,"CHF",0]
["Knuspriges Bürli","pro Stück","CHF",1.5,null,null,"CHF",0]
["Weggli","pro Stück","CHF",1.5,null,null,"CHF",0]
["Semmeli","pro Stück","CHF",1.5,null,null,"CHF",0]
["Früchte-Körner-Dinkel Brötli","pro Stück","CHF",1.7,null,null,"CHF",{"$f":"IF(F19=0,0,IF(F19<5,D19*5,IF(F19>=5,D19*F19)))","v":0}]
["Sojabrötli","pro Stück","CHF",1.7,null,null,"CHF",{"$f":"IF(F20=0,0,IF(F20<5,D20*5,IF(F20>=5,D20*F20)))","v":0}]
["Jogurt mit Früchte-Topping im Glas","pro Stück","CHF",1.8,null,null,"CHF",0]
["Jogurt mit Crunch Topping im Glas","pro Stück","CHF",1.8,null,null,"CHF",0]
["Hausgemachtes Birchermüesli im Glas","pro Stück","CHF",1.8,null,null,"CHF",0]
["Veganes Birchermüesli","pro Stück","CHF",2.2000000000000002,null,null,"CHF",0]
["Laktosefreies Jogurt","pro Stück","CHF",2.2000000000000002,null,null,"CHF",0]
["Fruchtsalat im Glas","pro Stück","CHF",1.8,null,null,"CHF",0]
["Saisonale Frucht","pro Stück","CHF",1,null,null,"CHF",{"$f":"IF(F27=0,0,IF(F27<5,D27*5,IF(F27>=5,D27*F27)))","v":0}]
["Butter-und Konfitüren-Variation","pro Person","CHF",2,null,null,"CHF",0]
["Soja Jogurt","pro Stück","CHF",1.65,null,null,"CHF",0]
["Chia Pudding","pro Stück","CHF",2.2000000000000002,null,null,"CHF",0]
["Trek Riegel","pro Stück","CHF",2.8,null,null,"CHF",0]
["Süsses und Spezielles",null,null,null,null,null,null,0]
["Scchoggibrötli Fairtrade","pro Stück","CHF",1.7,null,null,"CHF",0]
["Muffins Chocolate-Vanilla","pro Stück","CHF",4.8,null,null,"CHF",0]
["Muffins Lemon Meringue","pro Stück","CHF",4.8,null,null,"CHF",0]
["Muffins Salted Caramel","pro Stück","CHF",4.8,null,null,"CHF",0]
["Muffins Apple-Cinnamon","pro Stück","CHF",4.8,null,null,"CHF",0]
["Muffins Blueberry","pro Stück","CHF",4.8,null,null,"CHF",0]
["Brownie","pro Stück","CHF",3,null,null,"CHF",0]
["Mini Patisserie, assortiert","pro Person","CHF",2.2000000000000002,null,null,"CHF",0]
["Fruchtspiessli","pro Stück","CHF",2,null,null,"CHF",0]
["Bagel mit Frischkäse, Rucola, Tomate und Gurke","pro Stück","CHF",7.2,null,null,"CHF",0]
["Cookie-Variation","pro Person","CHF",4.9000000000000004,null,null,"CHF",0]
["Coffee Break\nCoffee Break ab 5 Personen bestellbar",null,null,null,null,null,null,0]
["Swiss Break\nFrischer Kaffee oder Tee\nOrangensaft \nSüssgebäck assortiert\nSaisonaler Früchtekorb \nHausgemachtes Flavoured Water ","pro Person","CHF",8.1999999999999993,null,null,"CHF",0]
["French Break\nFrischer Kaffee oder Tee\nOrangensaft  \nBrioche / Croissant\nSaisonaler Früchtekorb\nHausgemachtes Flavoured Water","pro Person","CHF",9.1999999999999993,null,null,"CHF",0]
["Bayrisch Break\nFrischer Kaffee oder Tee\nBretzel\nBlechkuchen\nHausgemachtes Flavoured Water ","pro Person","CHF",9.9,null,null,"CHF",0]

{"sheet":"Sandwiches & Apéro","index":2,"n_rows":104,"n_cols":8,"rows_kept":104,"cut":false,"hidden":false,"merged":[]}
[" Bestellung Catering"]
[]
[]
["Navigieren Sie ganz unkompiziert durch das Bestellformular."]
[null,"Einheit",null,"Preis/Einheit",null,"Anzahl",null,"Total"]
["Znüni Sandwiches\nSandwiches ab 5 Personen bestellbar"]
["Kleine Apéro Sandwiches\n(3 Brötchen pro Person)\nVariation an Laugenbrötchen, Rusticobrötchen, \nBrioche und Mini Bürli, gefüllt mit\nThon-Mousse, Frischkäse, Rohschinken, Käse und gegrilltem Gemüse\n","pro Person","CHF",7.5,null,null,"CHF",{"$f":"IF(F7=0,0,IF(F7<5,D7*5,IF(F7>=5,D7*F7)))","v":0}]
["Steinofenbaguette, 52cm\n(reicht für ca. 6 Personen)\nKnuspriges Baguette gefüllt mit Schinken, Salami, Fleischkäse\nund Käse, garniert mit Salat, Gürkchen und Tomaten\n","pro Stück","CHF",22.8,null,null,"CHF",{"$f":"F8*D8","v":0}]
["Steinofenbaguette, 52cm vegan\n(reicht für ca. 6 Personen)\nKnuspriges Baguette gefüllt mit Avocado mit weissen Bohnen, Antipasti und Räuchertofu und Hummus\n","pro Stück","CHF",24.5,null,null,"CHF",{"$f":"F9*D9","v":0}]
["Triangle Sandwich\nGerösteter Toast gefüllt mit Schinken und Käse\n\n","pro Stück","CHF",7.5,null,null,"CHF",0]
["Triangle Sandwich\nGerösteter Toast gefüllt mit Thonmousse","pro Stück","CHF",7.5,null,null,"CHF",0]
["Triangle Sandwich\nGerösteter Toast gefüllt mit Eimousse ","pro Stück","CHF",7.5,null,null,"CHF",0]
["Triangle Sandwich\nGerösteter Toast gefüllt mit Kräuterfrischkäse","pro Stück","CHF",7.5,null,null,"CHF",0]
["Triangle Sandwich vegan\nGerösteter Toast gefüllt mit Avocado und weissen Bohnen","pro Stück","CHF",9.5,null,null,"CHF",0]
["Triangle Sandwich vegan\nGerösteter Toast gefüllt mit Antipasti\n","pro Stück","CHF",9.5,null,null,"CHF",0]
["Canapées gemischt oder nach Wunsch belegt","pro Stück","CHF",5.2,null,null,"CHF",0]
["Triangle Sandwich vegan\nGerösteter Toast gefüllt mit Räuchertofu und Hummus\n","pro Stück","CHF",9.5,null,null,"CHF",0]
["Apéro"]
["Varianten\nApéro Variationen ab 10 Personen bestellbar"]
["Small Apéro\nKleine Apéro Sandwiches assortiert\nFruchtsalat im Glas","pro Person","CHF",9.1999999999999993,null,null,"CHF",{"$f":"IF(F20=0,0,IF(F20<5,D20*10,IF(F20>=10,D20*F20)))","v":0}]
["Medium Apéro\nParty Schinkengipfel\nMini Chäschüechli\nMozzarella-Tomaten Spiess\nZucchini-Röllchen gefüllt mit Frischkäse\nHackbällchen in pikanter Tomatensauce im Glas","pro Person","CHF",21,null,null,"CHF",{"$f":"IF(F21=0,0,IF(F21<5,D21*10,IF(F21>=10,D21*F21)))","v":0}]
["Large Apéro\nPoulet-Satay Spiessli\nGemüse-Frühlingsrolle mit Sweet Chilisauce\nGebackene Shrimps mit Dip Sauce            \nAsiatischer Gurkensalat im Glas\nAntipasti Spiessli\nGrisini mit Rohschinken\nFruchtsalat im Glas","pro Person","CHF",34.9,null,null,"CHF",0]
["XL Apéro\nPartybrötchen de luxe mit Rauchlachs, Rohschinken oder Brie\nWraps vegetarisch, vegan oder mit Fleischfüllung\nSamosa mit Dip Sauce\nFischknusperli mit Sauce Tartar\nBruschetta mit Tomate und Zwiebel\nCrevetten Salat Thai Style im Glas\nSaisonale Spiesse \nHausgemachtes Mini Pana Cotta mit \nSaisonalen Früchten  ","pro Person","CHF",40.299999999999997,null,null,"CHF",0]
["Sandwiches\nSandwiches ab 5 Personen bestellbar\n"]
["Gefülltes Parisette (57cm) \nKnuspriges Parisette gefüllt mit \neiner Variation aus Schinken, Salami, Fleischkäse,\nKäse und Antipasti Gemüse","pro Stück","CHF",25.2,null,null,"CHF",{"$f":"D25*F25","v":0}]
["Focaccia  \t\ngefüllt mit Falafel und Hummuu, garniert mit reichlich Salat\n","pro Stück","CHF",8.5,null,null,"CHF",{"$f":"IF(F26=0,0,IF(F26<5,D26*5,IF(F26>=5,D26*F26)))","v":0}]
["Focaccia  \t\ngefüllt mit Roastbeef, Frischkäse, Salat, Tomaten, Gurken und Radieschen\n","pro Stück","CHF",12.5,null,null,"CHF",0]
["Focaccia  \t\ngefüllt mit Pouletstreifen, Currysauce, Salat und Tomaten \n","pro Stück","CHF",10.8,null,null,"CHF",0]
["Focaccia  \t\ngefüllt mit Tomaten, Mozzarella, Frischkäse und Basilikum","pro Stück","CHF",10.5,null,null,"CHF",0]
["Partybrötchen de lux\n(3 Brötchen pro Person)\nVariation an Laugenbrötchen, Rusticobrötchen, Brioche und \nMini Bürli, gefüllt mit Rauchlachs, Roastbeef, Coppa, Bri und Birne","pro Person","CHF",16.5,null,null,"CHF",0]
["Gefüllter Bagel         \t\nFrischer Bagel gefüllt mit Frischkäse auf Salatgarnitur\n","pro Stück","CHF",9.5,null,null,"CHF",0]
["Gefüllter Bagel         \t\nFrischer Bagel gefüllt mit Eimousse auf Salatgarnitur\n","pro Stück","CHF",9.5,null,null,"CHF",0]
["Gefüllter Bagel         \t\nFrischer Bagel gefüllt mit Tomate, Mozzarella auf Ruccola\n\n","pro Stück","CHF",9.5,null,null,"CHF",0]
["Gefüllter Bagel         \t\nFrischer Bagel gefüllt mit Rauchlachs, Frischkäse, Meerrettich und Zwiebeln\n","pro Stück","CHF",9.5,null,null,"CHF",0]
["Wraps\nWraps ab 5 Personen bestellbar",null,null,null,null,null,null,0]
["Wrap Swiss Style\ngefüllt mit Vorderschinken und Emmentaler","pro Person","CHF",7.9,null,null,"CHF",0]
["Wrap Italy Style\ngefüllt mit Rucola, Parmesan, Pinienkernen,\nRohschinken und getrockneten Tomaten","pro Person","CHF",14.1,null,null,"CHF",0]
["Wrap Moroccan Style\ngefüllt mit Bulgur, Hummus, Aubergine, Granatapfelkernen \nund Salat","pro Person","CHF",6.8,null,null,"CHF",0]
["Wrap Antipasti\ngefüllt mit Antipastigemüse und Rucola","pro Person","CHF",7.2,null,null,"CHF",0]
["Wrap Vegi Style\ngefüllt mit Philadelphia, Rucola, Zuchetti, Radieschen und Karotten\n","pro Person","CHF",6.3,null,null,"CHF",0]
["Wrap Norway Style\ngefüllt mit Rauchlachs, Meerrettich, Salat, Zwiebeln und Gurken\n","pro Person","CHF",13,null,null,"CHF",0]
["Wrap English Style\ngefüllt mit Roastbeef, Salat, Zwiebeln, Peperoni und Senf-Mayonnaise","pro Person","CHF",14,null,null,"CHF",0]
["Kalte Häppchen\nKalte Häppchen ab 10 Personen bestellbar"]
["Rohe Gemüsesticks mit Dip Sauce","pro Person","CHF",2.5,null,null,"CHF",{"$f":"IF(F44=0,0,IF(F44<5,D44*10,IF(F44>=10,D44*F44)))","v":0}]
["Bruschetta mit frischen Tomaten und Zwiebel","pro Stück","CHF",2.2000000000000002,null,null,"CHF",{"$f":"IF(F45=0,0,IF(F45<5,D45*10,IF(F45>=10,D45*F45)))","v":0}]
["Rauchlachs auf gerösteter Toastbrotscheibe","pro Stück","CHF",3.6,null,null,"CHF",0]
["Crevetten Cocktail im Glas","pro Stück","CHF",3.9,null,null,"CHF",0]
["Asiatischer Gurkensalat im Glas","pro Stück","CHF",2.5,null,null,"CHF",0]
["Zucchini-Röllchen gefüllt mit Frischkäse","pro Stück","CHF",2.5,null,null,"CHF",0]
["Roastbeef Röllchen mit Frischkäse","pro Stück","CHF",2.8,null,null,"CHF",0]
["Mini Pastetchen mit Frischkäsefüllung","pro Stück","CHF",1.4,null,null,"CHF",0]
["Mini Pastetchen mit Thonmousse","pro Stück","CHF",1.4,null,null,"CHF",0]
["Mini Pastetchen mit Rauchlachstartar","pro Stück","CHF",1.5,null,null,"CHF",0]
["Grisini mit Rohschinken","pro Person","CHF",1.4,null,null,"CHF",0]
["Mini Pita Brot mit Hummus","pro Person","CHF",2.4,null,null,"CHF",{"$f":"IF(F55=0,0,IF(F55<5,D55*10,IF(F55>=10,D55*F55)))","v":0}]
["Spiessli"]
["Tomaten-Mozzarella ","pro Stück","CHF",3,null,null,"CHF",0]
["Saisonale Früchte  ","pro Stück","CHF",2,null,null,"CHF",0]
["Antipasti ","pro Stück","CHF",2.4,null,null,"CHF",0]
["Melone-Rohschinken  ","pro Stück","CHF",3,null,null,"CHF",0]
["Platten\nApéro Platten ab 5 Personen bestellbar"]
["Käse Platte    \n(100g Käse pro Person)\nVerschiedene Sorten an Hart- und Weichkäse\ngarniert mit Trauben und Walnüssen\ndazu servieren wir Ihnen frisches Nussbrot","pro Person","CHF",12,null,null,"CHF",{"$f":"IF(F62=0,0,IF(F62<5,D62*5,IF(F62>=5,D62*F62)))","v":0}]
["Bündner Fleisch Platte \n(100g Fleisch pro Person)\nBündnerfleisch, Bündner Rohschinken, Speck, Salami, Aufschnitt\ngarniert mit Essiggurken, Silberzwiebeln und Tomaten\ndazu servieren wir Ihnen frisches Brot\n","pro Person","CHF",16,null,null,"CHF",{"$f":"IF(F63=0,0,IF(F63<5,D63*5,IF(F63>=5,D63*F63)))","v":0}]
["Vegane Platte  \n(100g pro Person)\nPita Brot mit Hummus, Edamame, Oliven, Dörrtomaten und Falafel","pro Person","CHF",14.9,null,null,"CHF",0]
["Mediterane Platte \n(250g pro Person)\nMariniertes, gegrilltes Gemüse, \ngefüllte Peperoni, Oliven, Feta oder Parmesan\ndazu servieren wir Ihnen ofenfrisches Focacciabrot","pro Person","CHF",10.9,null,null,"CHF",{"$f":"IF(F65=0,0,IF(F65<5,D65*5,IF(F65>=5,D65*F65)))","v":0}]
["Mezze Platte \n(250g pro Person)\nPita Brot mit Baba Ganoush, Hummus, Poulet Spiesse, \nglasierte Pilze, Feta Spinat Salat, Tabbuleh und \nDatteln im Speckmantel","pro Person","CHF",20.3,null,null,"CHF",{"$f":"IF(F66=0,0,IF(F66<5,#REF!*5,IF(F66>=5,#REF!*F66)))","v":0}]
["Warme Häppchen\nWarme Häppchen ab 10 Personen bestellbar "]
["Gemüse-Frühlingsrolle","pro Stück","CHF",2.2999999999999998,null,null,"CHF",{"$f":"IF(F68=0,0,IF(F68<10,D68*10,IF(F68>=10,D68*F68)))","v":0}]
["Chäschüechli","pro Stück","CHF",3.8,null,null,"CHF",{"$f":"IF(F69=0,0,IF(F69<10,D69*10,IF(F69>=10,D69*F69)))","v":0}]
["Poulet-Satay Spiessli","pro Stück","CHF",3.6,null,null,"CHF",0]
["Hackbällchen in Tomatensauce, serviert im Glas","pro Stück","CHF",6.5,null,null,"CHF",0]
["Schinkengipfel","pro Stück","CHF",2.5,null,null,"CHF",0]
["Mini Pizza ","pro Stück","CHF",2.5,null,null,"CHF",0]
["Fisch-Knusperli mit Sauce Tartar","pro Person","CHF",4.5,null,null,"CHF",0]
["Gemüsestrudel ","pro Person","CHF",5.4,null,null,"CHF",0]
["Crevetten Spiessli","pro Stück","CHF",3.9,null,null,"CHF",0]
["Gebackene Shrimps mit Dip Sauce ","pro Stück","CHF",6,null,null,"CHF",0]
["Speckbrot überbacken mit Raclette Käse ","pro Stück","CHF",3.4,null,null,"CHF",0]
["Chicken Nuggets mit Dip Sauce","pro Stück","CHF",6.9,null,null,"CHF",0]
["Mini Hot Dog","pro Stück","CHF",4.2,null,null,"CHF",0]
["Samosas","pro Stück","CHF",2.6,null,null,"CHF",0]
["Gemüse Pakoras mit Rajita Dip","pro Stück","CHF",2.5,null,null,"CHF",0]
["Hot Jalapenos mit Sauerrahm Dip","pro Stück","CHF",2.5,null,null,"CHF",0]
["Patatas Bravas ","pro Stück","CHF",4.5,null,null,"CHF",0]
["Dattel im Speckmantel","pro Stück","CHF ",1,null,null,"CHF",0]
["Quesadillas (Käse-Chili Füllung)","pro Person","CHF",4.8,null,null,"CHF",0]
["Tortilla de Patatas","pro Person","CHF",5.4,null,null,"CHF",0]
["Pulled Pork Mini Burger","pro Stück","CHF",7.8,null,null,"CHF",0]
["Fish ‘n’ Chips","pro Person","CHF",6,null,null,"CHF",0]
["Schnitzelbrot mit Tartarsauce","pro Stück","CHF",6.6,null,null,"CHF",0]
["Elsässer Flammkuchen\n(ausreichend für ca. 6 Personen)","pro Stück","CHF",15,null,null,"CHF",0]
["Hausgemachte Gemüse Quiche \n(ausreichend für ca. 6 Personen)","pro Stück","CHF",15,null,null,"CHF",0]
["Snacks"]
["Kartoffelchips Paprika","pro Person","CHF",1.9,null,null,"CHF",{"$f":"IF(F94=0,0,IF(F94<5,D94*5,IF(F94>=5,D94*F94)))","v":0}]
["Kartoffelchips Salz","pro Person","CHF",1.9,null,null,"CHF",{"$f":"IF(F95=0,0,IF(F95<5,D95*5,IF(F95>=5,D95*F95)))","v":0}]
["Gemüsechips","pro Person","CHF",3.6,null,null,"CHF",0]
["Salznüssli","pro Person","CHF",1.5,null,null,"CHF",0]
["Salzstängeli","pro Person","CHF",1.8,null,null,"CHF",0]
["Salzige Blätterteigstangen","pro Person","CHF",4.5,null,null,"CHF",0]
["Marinierte Oliven ","pro Person","CHF",4.5,null,null,"CHF",0]
["Parmesanmöckli","pro Person","CHF",8.1,null,null,"CHF",0]
["Marinierte Dörrtomaten","pro Person","CHF",9.1,null,null,"CHF",0]
["Marinierte Fetawürfel","pro Person","CHF",2.5,null,null,"CHF",0]
["Edamame","pro Person","CHF",2.1,null,null,"CHF",0]

{"sheet":"Lunch","index":3,"n_rows":52,"n_cols":8,"rows_kept":52,"cut":false,"hidden":false,"merged":[[2,0,2,7]]}
[" Bestellung Catering"]
[]
[]
["Navigieren Sie ganz unkompiziert durch das Bestellformular."]
[null,"Einheit",null,"Preis/Einheit",null,"Anzahl",null,"Total"]
["Lunch"]
["Lunchpakete kalt\nDeklarationen je nach Ihrer Bestellung\nAb 5 Personen bestellbar"]
["Einfacher Lunch\nSandwich gefüllt mit Schinken\nSaisonale Frucht  \nSchoggiriegel ","pro Person","CHF",8.5,null,null,"CHF",{"$f":"IF(F8=0,0,IF(F8<5,D8*5,IF(F8>=5,D8*F8)))","v":0}]
["Einfacher Lunch\nSandwich gefüllt mit Salam\nSaisonale Frucht  \nSchoggiriegel ","pro Person","CHF",8.5,null,null,"CHF",0]
["Einfacher Lunch\nSandwich gefüllt mit Käse\nSaisonale Frucht  \nSchoggiriegel ","pro Person","CHF",8.5,null,null,"CHF",0]
["Swiss Lunch\nPartybrötli mit Bündnerfleisch \nHörnlisalat \nKalte Platte (Käse- und Fleisch gemischt) mit Nussbrot\nSaisonaler Fruchtspiess\nLindor Kugel","pro Person","CHF",12.5,null,null,"CHF",{"$f":"IF(F11=0,0,IF(F11<5,D11*5,IF(F11>=5,D11*F11)))","v":0}]
["Swiss Lunch\nPartybrötli mit Schweizer Käse\nHörnlisalat \nKalte Platte (Käse- und Fleisch gemischt) mit Nussbrot\nSaisonaler Fruchtspiess\nLindor Kugel","pro Person","CHF",12.5,null,null,"CHF",{"$f":"IF(F12=0,0,IF(F12<5,D12*5,IF(F12>=5,D12*F12)))","v":0}]
["Mediterraner Lunch    \nFocaccia gefüllt mit Antipasti Gemüse, \nRucola und Parmaschinken\nGriechischer Salat mit Oliven und Feta\nSaisonaler Fruchtspiess  \nDessert der Saison","pro Person","CHF",19.3,null,null,"CHF",0]
["Asia Lunch                  \nAsiatischer Glasnudelsalat mit Cashew-Nüssen\nCrevetten Salat Thai Style  im Glas\nPoulet-Satay \nVegetarische Mini-Frühlingsrollen mit Sweet & Sour Dip\nGebackene Banane  ","pro Person","CHF",22.8,null,null,"CHF",0]
["Salat im Glas"]
["Gemischter Saisonsalat mit Kernen & Nüssen  ","pro Stück","CHF",2.4,null,null,"CHF",{"$f":"IF(F16=0,0,IF(F16<10,D16*10,IF(F16>=10,D16*F16)))","v":0}]
["Griechischer Salat","pro Stück","CHF",2.4,null,null,"CHF",{"$f":"IF(F17=0,0,IF(F17<10,D17*10,IF(F17>=10,D17*F17)))","v":0}]
["Waldorf Salat","pro Stück","CHF",2.7,null,null,"CHF",0]
["Wurst-Käse Salat","pro Stück","CHF",3.6,null,null,"CHF",0]
["Gurkensalat mit Dill","pro Stück","CHF",2.1,null,null,"CHF",0]
["Ceasar Salat mit Speck und Croutons","pro Stück","CHF",3.9,null,null,"CHF",0]
["Asiatischer Glasnudelsalat mit Cashew Nüssen","pro Stück","CHF",4.2,null,null,"CHF",0]
["Poulet Tandoori Salat mit Jogurt und Minze ","pro Stück","CHF",4.0999999999999996,null,null,"CHF",0]
["Avocado Salat mit Mango und Chili","pro Stück","CHF",3.9,null,null,"CHF",0]
["Taboulée Salat mit Minze","pro Stück","CHF",4.5999999999999996,null,null,"CHF",0]
["Risoni Salat mit Kräutern, Gurken, Oliven und Tomate","pro Stück","CHF",2.2999999999999998,null,null,"CHF",0]
["Linsensalat mit Rauchlachs","pro Stück","CHF",3.3,null,null,"CHF",{"$f":"IF(F27=0,0,IF(F27<10,D27*10,IF(F27>=10,D27*F27)))","v":0}]
["Crevetten Salat Thai Style mit Chili, Limetten und Koriander","pro Stück","CHF",6.8,null,null,"CHF",0]
["Quinoa Salat mit Feta und Avocado             ","pro Stück","CHF",3.2,null,null,"CHF",0]
["Suppen im Weck-Glas\nab 10 Personen bestellbar"]
["Kalte Gazpacho","pro Person","CHF",3.9,null,null,"CHF",{"$f":"IF(F31=0,0,IF(F31<10,D31*10,IF(F31>=10,D31*F31)))","v":0}]
["Tomatensuppe mit Sahne Häubchen","pro Person","CHF",2.5,null,null,"CHF",0]
["Kalte Avocado-Kokossuppe","pro Person","CHF",3.9,null,null,"CHF",0]
["Linsen-Ingwer Suppe mit Apfelwürfel","pro Person","CHF",2,null,null,"CHF",0]
["Vegetarische Gerstensuppe","pro Person","CHF",2.8,null,null,"CHF",{"$f":"IF(F35=0,0,IF(F35<10,D35*10,IF(F35>=10,D35*F35)))","v":0}]
[]
["Lunch warm\nab 10 Personen bestellbar"]
["Tapas Lunchpaket\nAlbondigas\nPatatas Bravas\nQuesadillas (Käse-Chili Füllung)\nDatteln im Speckmantel\nTortilla","pro Person","CHF",17.899999999999999,null,null,"CHF",{"$f":"IF(F38=0,0,IF(F38<10,D38*10,IF(F38>=10,D38*F38)))","v":0}]
["Pasta Plausch \nZweierlei Pasta mit zwei Saucen\nBolognese-, Carbonara-, Napoli- oder Pesto Sauce\nDazu geriebener Parmesan","pro Person","CHF",12,null,null,"CHF",0]
["India Lunch\nGebackene Samosa mit Chutney \t\nGefülltes Fladenbrot (Indisches Aloo Paratha) \nLinsen Dal im Glas mit Naan Brot\nRote Linsenbällchen mit Minze Dip im Glas\nVerschiedene Pakoras mit Dip \nPaneer auf Spinat – Tomatensauce im Glas\nNaan Brot mit drei Verschiedenen Dipsaucen","pro Person","CHF",17.8,null,null,"CHF",0]
["Tagesmenu aus dem Restaurant","pro Person","CHF",11,null,null,"CHF",0]
["Lunch Bag\n"]
["Einfacher Lunch Bag \nLunch Bag gefüllt mit \ngemischtem Salat\nSandwich mit Salami\nSaisonale Frucht   \nSoftdrink nach Wahl\nSchoggiriegel","pro Person","CHF",9.9,null,null,"CHF",{"$f":"IF(F43=0,0,IF(F43<5,D43*5,IF(F43>=5,D43*F43)))","v":0}]
["Einfacher Lunch Bag \nLunch Bag gefüllt mit \ngemischtem Salat\nSandwich mit Schinken\nSaisonale Frucht   \nSoftdrink nach Wahl\nSchoggiriegel","pro Person","CHF",9.9,null,null,"CHF",{"$f":"IF(F44=0,0,IF(F44<5,D44*5,IF(F44>=5,D44*F44)))","v":0}]
["Einfacher Lunch Bag \nLunch Bag gefüllt mit \ngemischtem Salat\nSandwich mit Fleischkäse\nSaisonale Frucht   \nSoftdrink nach Wahl\nSchoggiriegel","pro Person","CHF",9.9,null,null,"CHF",0]
["Einfacher Lunch Bag\nLunch Bag gefüllt mit \ngemischtem Salat\nSandwich mit Trutenfleisch\nSaisonale Frucht   \nSoftdrink nach Wahl\nSchoggiriegel","pro Person","CHF",9.9,null,null,"CHF",0]
["Italienischer Lunch Bag \nLunch Bag gefüllt mit \nTomaten-Mozzarella Salat\nFocaccia mit Rohschinken\nSaisonale Frucht   \nSoftdrink nach Wahl\nSchoggiriegel","pro Person","CHF",12.9,null,null,"CHF",0]
["Italienischer Lunch Bag \nLunch Bag gefüllt mit \nTomaten-Mozzarella Salat\nFocaccia mit Antipasti\nSaisonale Frucht   \nSoftdrink nach Wahl\nSchoggiriegel","pro Person","CHF",12.9,null,null,"CHF",0]
["Italienischer Lunch Bag \nLunch Bag gefüllt mit \nTomaten-Mozzarella Salat\nFocaccia mit Poulet\nSaisonale Frucht   \nSoftdrink nach Wahl\nSchoggiriegel","pro Person","CHF",12.9,null,null,"CHF",0]
["Vegi Lunch Bag\nLunch Bag gefüllt mit \ngemischtem Salat\nVollkornsandwich mit Brie\nSaisonale Frucht   \nSoftdrink nach Wahl\nMüsliriegel","pro Person","CHF",10.9,null,null,"CHF",0]
["Vegi Lunch Bag\nLunch Bag gefüllt mit \ngemischtem Salat\nVollkornsandwich mit Hartkäse\nSaisonale Frucht   \nSoftdrink nach Wahl\nMüsliriegel","pro Person","CHF",10.9,null,null,"CHF",0]
["Vegi Lunch Bag\nLunch Bag gefüllt mit \ngemischtem Salat\nVollkornsandwich mit Ei\nSaisonale Frucht   \nSoftdrink nach Wahl\nMüsliriegel","pro Person","CHF",10.9,null,null,"CHF",0]

{"sheet":"Dessert","index":4,"n_rows":27,"n_cols":8,"rows_kept":27,"cut":false,"hidden":false,"merged":[[2,0,2,7],[26,1,26,2]]}
[" Bestellung Catering"]
[]
[]
["Navigieren Sie ganz unkompiziert durch das Bestellformular."]
[null,"Einheit",null,"Preis/Einheit",null,"Anzahl",null,"Total"]
["Dessert / Süsses\nDesserts ab 5 Personen bestellbar"]
["Saisonales Tagesdessert im Glas   ","pro Stück","CHF",2,null,null,"CHF",{"$f":"IF(F7=0,0,IF(F7<5,D7*5,IF(F7>=5,D7*F7)))","v":0}]
["Toblerone-Mousse im Glas","pro Stück","CHF",2.5,null,null,"CHF",{"$f":"IF(F8=0,0,IF(F8<5,D8*5,IF(F8>=5,D8*F8)))","v":0}]
["Schoko-Kuss","pro Stück","CHF",1.8,null,null,"CHF",0]
["Saisonaler Fruchtspiess","pro Stück","CHF",2,null,null,"CHF",0]
["Hausgemachtes Mini Pana Cotta mit saisonalen Früchten  ","pro Stück","CHF",2,null,null,"CHF",0]
["Schokoladenkuchen\n","pro Person","CHF",2.8,null,null,"CHF",0]
["Zitronenkuchen\n","pro Person","CHF",2.8,null,null,"CHF",0]
[" Tiroler Cake\n","pro Person","CHF",2.8,null,null,"CHF",0]
["Rüeblikuchen","pro Person","CHF",2.8,null,null,"CHF",0]
["Schoggibrötli Fairtrade","pro Stück","CHF",1.7,null,null,"CHF",0]
["Brownie","pro Stück","CHF",3,null,null,"CHF",0]
["Mini Patisserie, assortiert","pro Stück","CHF",2.2000000000000002,null,null,"CHF",0]
["Muffins\n(Blueberry, Schokolade, Himbeere)","pro Stück","CHF",4.8,null,null,"CHF",0]
["Cookies\n(Schokolade, Macadamia, ChocolateChip, Walnuss, Butter)","pro Person","CHF",4.9000000000000004,null,null,"CHF",0]
["Macarons assortiert","pro Person","CHF",2,null,null,"CHF",0]
["Chiapudding","pro Person","CHF",2.2000000000000002,null,null,"CHF",0]
["Creme Schnitte","pro Stück","CHF",5.3,null,null,"CHF",0]
["Veganes Panna Cotta mit Fruchttopping","pro Stück","CHF",4.8,null,null,"CHF",0]
["Veganer Apfelstrudel","pro Stück","CHF",5,null,null,"CHF",0]
["Kichererbsen-Schokoladenmousse","pro Stück","CHF",2.7,null,null,"CHF",0]
["Geburtstagskuche und Glace","nach Absprache"]

{"sheet":"Getränke","index":5,"n_rows":51,"n_cols":8,"rows_kept":51,"cut":false,"hidden":false,"merged":[[2,0,2,7]]}
[" Bestellung Catering"]
[]
[]
["Navigieren Sie ganz unkompiziert durch das Bestellformular."]
[null,"Einheit",null,"Preis/Einheit",null,"Anzahl",null,"Total"]
["Getränke "]
["Alkoholfreie Getränke"]
["Wasser"]
["Valser mit Kohlensäure, PET","0.5 l","CHF",3,null,null,"CHF",{"$f":"D9*F9","v":0}]
["Arkina ohne Kohlensäure, PET","0.5 l","CHF",3,null,null,"CHF",0]
["Valser mit Kohlensäure, Glas","1l","CHF",5,null,null,"CHF",0]
["Arkina ohne Kohlensäure, Glas","1l","CHF",5,null,null,"CHF",0]
["Flavored Water mit saisonalem Geschmack  ","4l","CHF",25,null,null,"CHF",0]
["Flavored Water mit saisonalem Geschmack ","pro Glas","CHF",1.5,null,null,"CHF",0]
["Säfte und Hausgemachtes"]
["Orangensaft","1 l","CHF",6,null,null,"CHF",0]
["Hausgemachter Eistee  ","1 l","CHF",8,null,null,"CHF",0]
["Hausgemachter Eistee  ","4 l","CHF",25,null,null,"CHF",0]
["Saisonaler Mocktail ","pro Glas","CHF",4.5999999999999996,null,null,"CHF",0]
["Süssgetränke"]
["Coca-Cola","4.5 dl","CHF",3,null,null,"CHF",{"$f":"D21*F21","v":0}]
["Coca-Cola Light","4.5 dl","CHF",3,null,null,"CHF",0]
["Coke Zero","4.5 dl","CHF",3,null,null,"CHF",0]
["Fanta","5 dl","CHF",3,null,null,"CHF",0]
["Sprite","5 dl","CHF",3,null,null,"CHF",0]
["Fusetea Lemon","5 dl","CHF",3,null,null,"CHF",0]
["Fusetea Peach","5 dl","CHF",3,null,null,"CHF",0]
["Rivella rot ","5 dl","CHF",3,null,null,"CHF",0]
["Rivella blau ","5 dl","CHF",3,null,null,"CHF",0]
["Rivella grün","5 dl","CHF",3,null,null,"CHF",0]
["Fritz Cola",null,null,3,null,null,"CHF",0]
["Ramseier Apfelschorle","5 dl","CHF",3,null,null,"CHF",0]
["Red Bull","2.5 dl","CHF",3,null,null,"CHF",0]
["El Tony","3.3 dl","CHF",3,null,null,"CHF",0]
["Vitamin Wasser","5 dl","CHF",3,null,null,"CHF",0]
["Yogi Drink","2dl",null,2.2000000000000002,null,null,"CHF",0]
["Comella","3.3 dl","CHF",2.2000000000000002,null,null,"CHF",{"$f":"D37*F37","v":0}]
["Emmi Café Latte ","2.3 dl","CHF",2.6,null,null,"CHF",{"$f":"D38*F38","v":0}]
["Tee"]
["Diverse Sorten, assortiert","pro Tasse","CHF",2.5,null,null,"CHF",0]
["Kaffee"]
["Nespresso Pads Kaffe","pro Tasse","CHF",2.5,null,null,"CHF",{"$f":"D42*F42","v":0}]
["Alkoholische Getränke"]
["Bier"]
["FHGR Studi Bier (Brauerei Monstein Davos)","33cl","CHF",4.5,null,null,"CHF",{"$f":"D45*F45","v":0}]
["Weisswein"]
["Pinot Blanc Grond AOC, Davaz, Fläsch","7.5 dl","CHF",31.5,null,null,"CHF",{"$f":"D47*F47","v":0}]
["Preis nur gültig bei internen Anlässen mit KST Nummer(Zapfengeld)",null,null,null,null,null,"CHF",{"$f":"D48*F48","v":0}]
["Rotwein"]
["Pinot Noir Grond AOC, Davaz, Fläsch","7.5 dl","CHF",42,null,null,"CHF",{"$f":"D50*F50","v":0}]
["Preis nur gültig bei internen Anlässen mit KST Nummer(Zapfengeld)"]